Workbook

Sheet Cover
A1: =RIGHT(CELL("filename", $A$1), LEN(CELL("filename", $A$1)) - SEARCH("]", CELL("filename", $A$1))) -> Cover
C3: Model name: | D3: PR19 RCV adjustments feeder model
C4: Version number: | D4: 01r - June 2018 update
C5: Filename: | D5: ="PR19 RCV adjustments feeder model " & D4 & ".xlsm" -> PR19 RCV adjustments feeder model 01r - June 2018 update.xlsm
C6: Date: | D6: 2018-06-20
C7: Author: | D7: Ofwat and F1F9 UK Ltd
C8: Author contact information: | D8: PR19@ofwat.gsi.gov.uk
C11: Summary of model: | D11: The model is designed to take the RCV adjustment outputs from the PR09 and PR14 reconciliations and convert them for use in the PR19 financial model in line
D12: with Delivering Water 2020: PR19 methodology, chapter 12 (accounting for past delivery).
C14: Known limitations: | D14: The model has been subject to internal Ofwat quality assurance.
C16: Feedback: | D16: We would welcome feedback on the PR19 RCV adjustments feeder model. Please send any feedback to the following email address
D17: PR19@ofwat.gsi.gov.uk
A20: End of sheet

Sheet Change Log
A1: Change log
B3: # | C3: Issue | D3: Change | E3: Sheet | F3: Row
A5: 2017-12-01 | B5: 1 | C5: Company noted that the Ofwat feeder model incorrectly deflates prices from 2020 year end prices to 2017-18 financial year average prices by referencing the RPI March index value in the numerator. | D5: Corrected calculation of the deflation factor to reference CPIH March 2020 index value. | E5: Indexation | F5: 102
A6: 2017-12-01 | B6: 2 | C6: Companies noted differences in item labels between the Ofwat feeder model and the business plan tables | D6: Item labels have been aligned with the business plan tables | E6: Calc Summary_Output
A7: 2017-12-01 | B7: 3 | C7: Some business plan tables require RCV items in 2017-18 FYE (financial year end) CPIH deflated price base. | D7: Add 2017-18 FYE CPIH deflation factor | E7: Indexation | F7: 105
A8: 2017-12-01 | B8: 4 | C8: Some business plan tables require RCV items in 2017-18 FYE (financial year end) CPIH deflated price base. | D8: Add the 2017-18 FYE CPIH deflated items to the Calc and Summary_Output sheet | E8: Calc Summary_Output
A9: 2018-06-01 | B9: 5 | C9: Line descriptions for the CIS RCV inflation correction items are not consistent with business plan tables. | D9: Item labels have been aligned with the business plan tables App8 and App25. | E9: Inputs Calc Summary_Output
A10: 2018-06-01 | B10: 6 | C10: IN 18/09 Guidance for reporting operating leases in PR19 business plans. The RCV adjustment calculated for each wholesale control in business plan table App33 flows to business plan table App8. The RCV adjustments feeder model has been updated to reflect the revisions to table App8. | D10: Include the new IFRS16 related RCV adjustments in the calculation of the opening balances for the 2020 RCV RPI inflated and 2020 RCV CPIH inflated RCV. | E10: Inputs Indexation Calc Summary_Output
A11: 2018-06-01 | B11: 7 | C11: In response to a query a new business plan table has been created. The Ofwat feeder model has been updated to reflect the additional table Dmmy10. | D11: Include the Dmmy10 RCV adjustment in the calculation of the opening balances for the dummy price control 2020 RCV RPI inflated and 2020 RCV CPIH inflated RCV. | E11: Inputs Calc Summary_Output
A12: 2018-06-01 | B12: 8 | C12: Change email address | D12: Changed from water2020 mailbox to PR19 mailbox | E12: Cover

Sheet Map & Key
A1: =RIGHT(CELL("filename", $A$1), LEN(CELL("filename", $A$1)) - SEARCH("]", CELL("filename", $A$1))) -> Map & Key
A3: GENERIC MODEL DESIGN
F5: ABOVE BONNET - USER INTERFACE
H8: Inputs | P8: Output Summary
F13: BELOW BONNET - CALCULATION ENGINE
H19: Input Transition | L19: Calculations | P19: Detailed Outputs
F25: Note: FAST strictly applicable below the bonnet
A28: MODEL MAP
F30: MODEL MAP
H32: INPUTS | L32: CALCULATIONS | V32: DOCUMENTATION
H36: =Inputs!$A$1 -> Inputs | L36: =Time!$A$1 -> Time | P36: =Summary_Output!$A$1 -> Summary_Output | V36: =$A$1 -> Map & Key
H37: All the hardcoded inputs used in the model for calculation. | L37: The model timeline and flag calculations are done in this sheet. | P37: A summary of links of major output of this model. | V37: Sheet references and model flow; Sheet tabs colours, colour coding, abbreviations, range names are mentioned in this sheet.
L39: =Indexation!$A$1 -> Indexation
L40: All the indexation related calculations are done in this sheet.
L42: =Calc!$A$1 -> Calc
L43: All the price regulations related calculations are done in this sheet.
A48: SHEET TABS
H50: Light Yellow | J50: Input sheets
H52: No colour (default Excel tab colour) | J52: Calculation and documentation sheets
H54: Pale Blue | J54: Key output sheets
H56: Turquoise | J56: Quality control sheets
H58: Yellow | J58: To be completed, temporary, restructured, or deleted
A61: COLOUR
B63: Font colour only
H64: Blue font | J64: Imported from another sheet
H66: Red font | J66: Exported to another sheet (except from Input sheets)
H68: Black font | J68: Within sheet link or calculation
B70: Font + shade combinations
H71: Black font + Light Yellow shade | J71: Inputs
H73: Black font + Light Grey shade on entire row | J73: Within-worksheet counter-flow
H75: Blue font + Light Grey shade on entire row | J75: Between-worksheet counter-flow
H77: Empty Cell with Light Grey shade | J77: Empty cells being deliberately referenced
B79: Other
H80: Black font + Pale Blue shade on entire row | J80: Section separator
H82: Light Turquoise shade | J82: Stored/dead/hard coded outputs
H84: Tan shade | J84: Pre-model time line actuals
H86: Yellow shade | J86: Work in progress / temporary
H88: Lime shade | J88: Values or logic to be reviewed
B90: Error checks & alerts
H91: Green shade | J91: OK
H93: Red shade | J93: Error
H95: Gold shade | J95: Alert
A98: ABBREVIATIONS
H100: BR | I100: Bio resources
H101: CPIH | I101: Consumer price index housing
H102: RCV | I102: Regulatory capital value
H103: RPI | I103: Retail price index
H104: WR | I104: Water resources
H105: WN | I105: Water network
H106: WWN | I106: Wastewater network
A109: NAMES
H111: NO NAME RANGES PRESENT IN THE MODEL
A114: LIST OF FUNCTIONS USED
H116: SUMPRODUCT | J116: Multiplies corresponding components in the given arrays, and returns the sum of those products.
H117: MATCH | J117: The MATCH function searches for a specified item in a range of cells, and then returns the relative position of that item in the range.
H118: INDEX | J118: Returns a value or the reference to a value from within a table or range, selected by the row and column number indexes
A121: End of sheet

Sheet Inputs
A1: =RIGHT(CELL("FILENAME", $A$1), LEN(CELL("FILENAME", $A$1)) - SEARCH("]", CELL("FILENAME", $A$1))) -> Inputs
E2: =Time!E$25 -> Model period ending | J2: =Time!J$25 -> 2013-03-31 | K2: =Time!K$25 -> 2014-03-31 | L2: =Time!L$25 -> 2015-03-31 | M2: =Time!M$25 -> 2016-03-31 | N2: =Time!N$25 -> 2017-03-31 | O2: =Time!O$25 -> 2018-03-31 | P2: =Time!P$25 -> 2019-03-31 | Q2: =Time!Q$25 -> 2020-03-31 | R2: =Time!R$25 -> 2021-03-31 | S2: =Time!S$25 -> 2022-03-31 | T2: =Time!T$25 -> 2023-03-31 | U2: =Time!U$25 -> 2024-03-31
E3: =Time!E$80 -> Timeline label | J3: =Time!J$80 -> Pre-Fcst | K3: =Time!K$80 -> Pre-Fcst | L3: =Time!L$80 -> Pre-Fcst | M3: =Time!M$80 -> Pre-Fcst | N3: =Time!N$80 -> Pre-Fcst | O3: =Time!O$80 -> Pre-Fcst | P3: =Time!P$80 -> Pre-Fcst | Q3: =Time!Q$80 -> Pre-Fcst | R3: =Time!R$80 -> Forecast | S3: =Time!S$80 -> Forecast | T3: =Time!T$80 -> Forecast | U3: =Time!U$80 -> Forecast
E4: =Time!E$103 -> Financial year ending | J4: =Time!J$103 -> 2013 | K4: =Time!K$103 -> 2014 | L4: =Time!L$103 -> 2015 | M4: =Time!M$103 -> 2016 | N4: =Time!N$103 -> 2017 | O4: =Time!O$103 -> 2018 | P4: =Time!P$103 -> 2019 | Q4: =Time!Q$103 -> 2020 | R4: =Time!R$103 -> 2021 | S4: =Time!S$103 -> 2022 | T4: =Time!T$103 -> 2023 | U4: =Time!U$103 -> 2024
A5: =IF(COUNTIF(A6:A139,"< 0") + COUNTIF(A6:A139,">0") <> 0, 1, 0) -> 0 | D5: Input references | E5: =Time!E$10 -> Model column counter | F5: Constant | G5: Unit | H5: Total | J5: =Time!J$10 -> 1 | K5: =Time!K$10 -> 2 | L5: =Time!L$10 -> 3 | M5: =Time!M$10 -> 4 | N5: =Time!N$10 -> 5 | O5: =Time!O$10 -> 6 | P5: =Time!P$10 -> 7 | Q5: =Time!Q$10 -> 8 | R5: =Time!R$10 -> 9 | S5: =Time!S$10 -> 10 | T5: =Time!T$10 -> 11 | U5: =Time!U$10 -> 12
E6: [Used in formula range - Do not delete]
A8: A: TIME
B10: Timeline setup
C12: Timeline start dates
E13: 1st model column start date | F13: 2012-04-01 | G13: date | H13: Date should be the first date of the financial year
C15: Financial year inputs
E16: First modelling column financial year# | F16: 2013 | G16: year # | H16: Financial model start year
E17: Financial year end month number | F17: 3 | G17: month # | H17: Month of financial year end for financial model
C19: Timeline labels
E20: Pre - forecast period | F20: Pre-Fcst | G20: label
E21: Forecast period | F21: Forecast | G21: label
E22: Post - forecast period | F22: Post-Fcst | G22: label
B24: Project dates
E26: Forecast start date | F26: 2020-04-01 | G26: date
E27: Forecast duration | F27: 5 | G27: years
E28: Forecast duration (text) | F28: =YEAR(F26) & "-" & TEXT(DATE(YEAR(F26) + F27, 1, 1), "yy") -> 2020-25 | G28: years #
A31: B: INDEXATION
B33: CPIH INDEXATION
E35: Consumer Price Index for April | G35: index | J35: 95.9 | K35: 98 | L35: 99.6 | M35: 99.9 | N35: 100.6 | O35: 103.2 | P35: 105.5 | Q35: 107.1548929 | V35: 118.0011098
E36: Consumer Price Index for May | G36: index | J36: 95.9 | K36: 98.2 | L36: 99.6 | M36: 100.1 | N36: 100.8 | O36: 103.5 | P36: 105.9 | Q36: 107.3327814 | V36: 118.3366579
E37: Consumer Price Index for June | G37: index | J37: 95.6 | K37: 98 | L37: 99.8 | M37: 100.1 | N37: 101 | O37: 103.5 | P37: 105.9 | Q37: 107.5109651 | V37: 118.3366579
E38: Consumer Price Index for July | G38: index | J38: 95.7 | K38: 98 | L38: 99.6 | M38: 100 | N38: 100.9 | O38: 103.5 | P38: 105.9 | Q38: 107.6894447 | V38: 118.2248085
E39: Consumer Price Index for August | G39: index | J39: 96.1 | K39: 98.4 | L39: 99.9 | M39: 100.3 | N39: 101.2 | O39: 104 | P39: 106.5 | Q39: 107.8682206 | V39: 118.6722061
E40: Consumer Price Index for September | G40: index | J40: 96.4 | K40: 98.7 | L40: 100 | M40: 100.2 | N40: 101.5 | O40: 104.3 | P40: 106.6 | Q40: 108.0472932 | V40: 118.8959049
E41: Consumer Price Index for October | G41: index | J41: 96.8 | K41: 98.8 | L41: 100.1 | M41: 100.3 | N41: 101.6 | O41: 104.4 | P41: 106.7 | Q41: 108.2266632 | V41: 119.0077543
E42: Consumer Price Index for November | G42: index | J42: 97 | K42: 98.8 | L42: 99.9 | M42: 100.3 | N42: 101.8 | O42: 104.7 | P42: 106.9 | Q42: 108.4063309 | V42: 119.0077543
E43: Consumer Price Index for December | G43: index | J43: 97.3 | K43: 99.2 | L43: 99.9 | M43: 100.4 | N43: 102.2 | O43: 105 | P43: 107.1 | Q43: 108.5862969 | V43: 119.3433025
E44: Consumer Price Index for January | G44: index | J44: 97 | K44: 98.7 | L44: 99.2 | M44: 99.9 | N44: 101.8 | O44: 104.5 | P44: 106.4 | Q44: 108.7593906 | V44: 118.6722061
E45: Consumer Price Index for February | G45: index | J45: 97.5 | K45: 99.1 | L45: 99.5 | M45: 100.1 | N45: 102.4 | O45: 104.9 | P45: 106.8 | Q45: 108.9327604 | V45: 119.1196037
E46: Consumer Price Index for March | G46: index | J46: 97.8 | K46: 99.3 | L46: 99.6 | M46: 100.4 | N46: 102.7 | O46: 105.1 | P46: 106.9772993 | Q46: 109.1064064 | V46: 119.4551519
E48: CPIH: Assumed percentage increase for unpopulated monthly values | G48: % | R48: 0.01952680059 | S48: 0.01981340357 | T48: 0.01999586273 | U48: 0.02000000218 | V48: 0.03074564561
B50: RPI INDEXATION
E52: Retail Price Index for April | G52: index | J52: 242.5 | K52: 249.5 | L52: 255.7 | M52: 258 | N52: 261.4 | O52: 270.6 | P52: 279.7 | Q52: 286.349541 | V52: 344.352342
E53: Retail Price Index for May | G53: index | J53: 242.4 | K53: 250 | L53: 255.9 | M53: 258.5 | N53: 262.1 | O53: 271.7 | P53: 280.7 | Q53: 287.026706 | V53: 346.1984053
E54: Retail Price Index for June | G54: index | J54: 241.8 | K54: 249.7 | L54: 256.3 | M54: 258.9 | N54: 263.1 | O54: 272.3 | P54: 281.5 | Q54: 287.7054723 | V54: 347.5521851
E55: Retail Price Index for July | G55: index | J55: 242.1 | K55: 249.7 | L55: 256 | M55: 258.6 | N55: 263.4 | O55: 272.9 | P55: 281.7 | Q55: 288.3858438 | V55: 347.675256
E56: Retail Price Index for August | G56: index | J56: 243 | K56: 251 | L56: 257 | M56: 259.8 | N56: 264.4 | O56: 274.7 | P56: 284.2 | Q56: 289.0678243 | V56: 349.7674611
E57: Retail Price Index for September | G57: index | J57: 244.2 | K57: 251.9 | L57: 257.6 | M57: 259.6 | N57: 264.9 | O57: 275.1 | P57: 284.1 | Q57: 289.7514176 | V57: 350.5058864
E58: Retail Price Index for October | G58: index | J58: 245.6 | K58: 251.9 | L58: 257.7 | M58: 259.5 | N58: 264.8 | O58: 275.3 | P58: 284.5 | Q58: 290.4366274 | V58: 350.875099
E59: Retail Price Index for November | G59: index | J59: 245.6 | K59: 252.1 | L59: 257.1 | M59: 259.8 | N59: 265.5 | O59: 275.8 | P59: 284.6 | Q59: 291.1234576 | V59: 350.875099
E60: Retail Price Index for December | G60: index | J60: 246.8 | K60: 253.4 | L60: 257.5 | M60: 260.6 | N60: 267.1 | O60: 278.1 | P60: 285.6 | Q60: 291.811912 | V60: 352.4750206
E61: Retail Price Index for January | G61: index | J61: 245.8 | K61: 252.6 | L61: 255.4 | M61: 258.8 | N61: 265.5 | O61: 276 | P61: 283 | Q61: 292.5056779 | V61: 350.6289573
E62: Retail Price Index for February | G62: index | J62: 247.6 | K62: 254.2 | L62: 256.7 | M62: 260 | N62: 268.4 | O62: 278.1 | P62: 285 | Q62: 293.2010932 | V62: 352.9673041
E63: Retail Price Index for March | G63: index | J63: 248.7 | K63: 254.8 | L63: 257.1 | M63: 261.1 | N63: 269.3 | O63: 278.3 | P63: 285.6739736 | Q63: 293.8981617 | V63: 354.3210839
E65: RPI: Assumed percentage increase for unpopulated monthly values | G65: % | R65: 0.02894213953 | S65: 0.03024920517 | T65: 0.03066184435 | U65: 0.0306750996 | V65: 0.0299
B67: Inflation
E69: Year reference for FYA base price 1 | F69: 2013 | G69: year #
E70: Year reference for FYA base price 2 | F70: 2018 | G70: year #
E71: Year reference for FYE base price | F71: 2018 | G71: year #
E72: Year reference for FYE end price | F72: 2020 | G72: year #
B74: Deflation
E76: Year reference for FYE base price | F76: 2020 | G76: year #
E77: Year reference for FYA end price | F77: 2018 | G77: year #
E78: Year reference for FYE base price - IFRS 16 | F78: 2018 | G78: year #
A81: C: RCV INPUTS
B83: Water services
E85: Wholesale water closing RCV at 31 March 2020 (from PR14 FD) | F85: 1181.762796 | G85: £m | H85: 2012/13 FYA
E86: Water ~ Total Adjustment RCV carry forward to PR19 | F86: 0.604 | G86: £m | H86: 2012/13 FYA
E87: Water ~ CIS RCV inflation correction | F87: -21.29849079 | G87: £m | H87: 2012/13 FYA
E88: Net performance payment / (penalty) applied to RCV for end of period ODI adjustments ~ Water resources | F88: 0 | G88: £m | H88: 2012/13 FYA
E89: Net performance payment / (penalty) applied to RCV for end of period ODI adjustments ~ Water network plus | F89: -0.358 | G89: £m | H89: 2012/13 FYA
E90: Water: RCV adjustment from totex menu model | F90: -15.6 | G90: £m | H90: 2012/13 FYA
E91: Water ~ Other adjustment to wholesale RCV | F91: 0 | G91: £m | H91: 2017/18 FYE
E92: Water ~ NPV effect of 50% of proceeds from disposals of interest in land | F92: 0.575 | G92: £m | H92: 2017/18 FYA
E94: % of RCV to index by RPI - water services | F94: 0.5 | G94: %
E96: Water resources % of total wholesale water RCV ~ 31 March 2020 | F96: 0.05 | G96: %
E97: Water network plus % of total wholesale water RCV ~ 31 March 2020 | F97: =1-F96 -> 0.95 | G97: %
E99: Water resources IFRS16 RCV adjustment | F99: 0.467 | G99: £m | H99: 2017/18 FYE
E100: Water network plus IFRS16 RCV adjustment | F100: 2.058 | G100: £m | H100: 2017/18 FYE
B102: Wastewater services
E104: Wholesale wastewater closing RCV at 31 March 2020 in 2012-13 prices (PR14 FD) | G104: £m | H104: 2012/13 FYA
E105: Wastewater ~ Total Adjustment RCV carry forward to PR19 | G105: £m | H105: 2012/13 FYA
E106: Wastewater ~ CIS RCV inflation correction | G106: £m | H106: 2012/13 FYA
E107: Net performance payment / (penalty) applied to RCV for end of period ODI adjustments ~ Wastewater network plus | G107: £m | H107: 2012/13 FYA
E108: Wastewater: RCV adjustment from totex menu model | G108: £m | H108: 2012/13 FYA
E109: Wastewater ~ Other adjustment to wholesale RCV | G109: £m | H109: 2017/18 FYE
E110: Wastewater ~ NPV effect of 50% of proceeds from disposals of interest in land | G110: £m | H110: 2017/18 FYA
E112: % of RCV to index by RPI - wastewater services | G112: %
E114: Bioresources RCV (prior to midnight adjustments) 31 March 2020 | G114: £m | H114: 2017/18 FYE
E116: Bioresources IFRS16 RCV adjustment | G116: £m | H116: 2017/18 FYE
E117: Wastewater network plus IFRS16 RCV adjustment | G117: £m | H117: 2017/18 FYE
B119: Dummy RCV
E121: Dummy RCV (prior to midnight adjustments) 31 March 2020 | G121: £m | H121: 2017/18 FYE
E122: Net performance payment / (penalty) applied to RCV for end of period ODI adjustments ~ Thames Tideway | G122: £m | H122: 2012/13 FYA
E123: Dummy: RCV adjustment from totex menu model | G123: £m | H123: 2012/13 FYA
E125: % of RCV to index by RPI - dummy | G125: %
E127: Dummy IFRS16 RCV adjustment | G127: £m | H127: 2017/18 FYE
A130: D: NON CHANGEABLE MODEL TECHNICAL INPUTS
E132: Months per model period | F132: 12 | G132: months
E134: Months in a year | F134: 12 | G134: months
E136: Days in a year | F136: 365 | G136: days
E139: [Used in formula range - Do not delete]

Sheet Time
A1: =RIGHT(CELL("FILENAME", $A$1), LEN(CELL("FILENAME", $A$1)) - SEARCH("]", CELL("FILENAME", $A$1))) -> Time
E2: =Time!E$25 -> Model period ending | J2: =Time!J$25 -> 2013-03-31 | K2: =Time!K$25 -> 2014-03-31 | L2: =Time!L$25 -> 2015-03-31 | M2: =Time!M$25 -> 2016-03-31 | N2: =Time!N$25 -> 2017-03-31 | O2: =Time!O$25 -> 2018-03-31 | P2: =Time!P$25 -> 2019-03-31 | Q2: =Time!Q$25 -> 2020-03-31 | R2: =Time!R$25 -> 2021-03-31 | S2: =Time!S$25 -> 2022-03-31 | T2: =Time!T$25 -> 2023-03-31 | U2: =Time!U$25 -> 2024-03-31
E3: =Time!E$80 -> Timeline label | J3: =Time!J$80 -> Pre-Fcst | K3: =Time!K$80 -> Pre-Fcst | L3: =Time!L$80 -> Pre-Fcst | M3: =Time!M$80 -> Pre-Fcst | N3: =Time!N$80 -> Pre-Fcst | O3: =Time!O$80 -> Pre-Fcst | P3: =Time!P$80 -> Pre-Fcst | Q3: =Time!Q$80 -> Pre-Fcst | R3: =Time!R$80 -> Forecast | S3: =Time!S$80 -> Forecast | T3: =Time!T$80 -> Forecast | U3: =Time!U$80 -> Forecast
E4: =Time!E$103 -> Financial year ending | J4: =Time!J$103 -> 2013 | K4: =Time!K$103 -> 2014 | L4: =Time!L$103 -> 2015 | M4: =Time!M$103 -> 2016 | N4: =Time!N$103 -> 2017 | O4: =Time!O$103 -> 2018 | P4: =Time!P$103 -> 2019 | Q4: =Time!Q$103 -> 2020 | R4: =Time!R$103 -> 2021 | S4: =Time!S$103 -> 2022 | T4: =Time!T$103 -> 2023 | U4: =Time!U$103 -> 2024
E5: =Time!E$10 -> Model column counter | F5: Constant | G5: Unit | H5: Total | J5: =Time!J$10 -> 1 | K5: =Time!K$10 -> 2 | L5: =Time!L$10 -> 3 | M5: =Time!M$10 -> 4 | N5: =Time!N$10 -> 5 | O5: =Time!O$10 -> 6 | P5: =Time!P$10 -> 7 | Q5: =Time!Q$10 -> 8 | R5: =Time!R$10 -> 9 | S5: =Time!S$10 -> 10 | T5: =Time!T$10 -> 11 | U5: =Time!U$10 -> 12
A7: MODEL PERIOD
B9: Model column counter
E10: Model column counter | G10: counter | J10: =I10 + 1 -> 1 | K10: 2 | L10: 3 | M10: 4 | N10: 5 | O10: 6 | P10: 7 | Q10: 8 | R10: 9 | S10: =R10 + 1 -> 10 | T10: =S10 + 1 -> 11 | U10: =T10 + 1 -> 12
E11: Model column total | F11: =MAX(J10:U10) -> 12 | G11: columns
E13: =E$10 -> Model column counter | F13: 0 | G13: counter | H13: 0 | I13: 0 | J13: 1 | K13: 2 | L13: 3 | M13: 4 | N13: 5 | O13: 6 | P13: 7 | Q13: 8 | R13: 9 | S13: 10 | T13: 11 | U13: 12
E14: 1st model column flag | G14: flag | H14: =SUM(J14:U14) -> 1 | J14: =IF(J13 = 1, 1, 0) -> 1 | K14: 0 | L14: 0 | M14: 0 | N14: 0 | O14: 0 | P14: 0 | Q14: 0 | R14: 0 | S14: =IF(S13 = 1, 1, 0) -> 0 | T14: =IF(T13 = 1, 1, 0) -> 0 | U14: =IF(U13 = 1, 1, 0) -> 0
B16: Model period beginning
E17: =Inputs!E$13 -> 1st model column start date | F17: =Inputs!F$13 -> 2012-04-01 | G17: =Inputs!G$13 -> date
E18: =Inputs!E$132 -> Months per model period | F18: =Inputs!F$132 -> 12 | G18: =Inputs!G$132 -> months
E19: =E$14 -> 1st model column flag | F19: 0 | G19: flag | H19: 1 | I19: 0 | J19: 1 | K19: 0 | L19: 0 | M19: 0 | N19: 0 | O19: 0 | P19: 0 | Q19: 0 | R19: 0 | S19: 0 | T19: 0 | U19: 0
E20: Model period beginning | G20: date | J20: =IF(J19 = 1, $F17, DATE(YEAR(I20), MONTH(I20) + $F18, DAY(1))) -> 2012-04-01 | K20: 2013-04-01 | L20: 2014-04-01 | M20: 2015-04-01 | N20: 2016-04-01 | O20: 2017-04-01 | P20: 2018-04-01 | Q20: 2019-04-01 | R20: 2020-04-01 | S20: =IF(S19 = 1, $F17, DATE(YEAR(R20), MONTH(R20) + $F18, DAY(1))) -> 2021-04-01 | T20: =IF(T19 = 1, $F17, DATE(YEAR(S20), MONTH(S20) + $F18, DAY(1))) -> 2022-04-01 | U20: =IF(U19 = 1, $F17, DATE(YEAR(T20), MONTH(T20) + $F18, DAY(1))) -> 2023-04-01
B22: Model period ending
E23: =Inputs!E$132 -> Months per model period | F23: =Inputs!F$132 -> 12 | G23: =Inputs!G$132 -> months
E24: =E$20 -> Model period beginning | F24: 00:00:00 | G24: date | H24: 00:00:00 | I24: 00:00:00 | J24: 2012-04-01 | K24: 2013-04-01 | L24: 2014-04-01 | M24: 2015-04-01 | N24: 2016-04-01 | O24: 2017-04-01 | P24: 2018-04-01 | Q24: 2019-04-01 | R24: 2020-04-01 | S24: 2021-04-01 | T24: 2022-04-01 | U24: 2023-04-01
E25: Model period ending | G25: date | J25: =DATE(YEAR(J24), MONTH(J24) + $F23, DAY(J24) - 1) -> 2013-03-31 | K25: 2014-03-31 | L25: 2015-03-31 | M25: 2016-03-31 | N25: 2017-03-31 | O25: 2018-03-31 | P25: 2019-03-31 | Q25: 2020-03-31 | R25: 2021-03-31 | S25: =DATE(YEAR(S24), MONTH(S24) + $F23, DAY(S24) - 1) -> 2022-03-31 | T25: =DATE(YEAR(T24), MONTH(T24) + $F23, DAY(T24) - 1) -> 2023-03-31 | U25: =DATE(YEAR(U24), MONTH(U24) + $F23, DAY(U24) - 1) -> 2024-03-31
A28: FORECAST PERIOD
B30: Forecast start period flag
E31: =Inputs!E$26 -> Forecast start date | F31: =Inputs!F$26 -> 2020-04-01 | G31: =Inputs!G$26 -> date
E32: =E$20 -> Model period beginning | F32: 00:00:00 | G32: date | H32: 00:00:00 | I32: 00:00:00 | J32: 2012-04-01 | K32: 2013-04-01 | L32: 2014-04-01 | M32: 2015-04-01 | N32: 2016-04-01 | O32: 2017-04-01 | P32: 2018-04-01 | Q32: 2019-04-01 | R32: 2020-04-01 | S32: 2021-04-01 | T32: 2022-04-01 | U32: 2023-04-01
E33: =E$25 -> Model period ending | F33: 00:00:00 | G33: date | H33: 00:00:00 | I33: 00:00:00 | J33: 2013-03-31 | K33: 2014-03-31 | L33: 2015-03-31 | M33: 2016-03-31 | N33: 2017-03-31 | O33: 2018-03-31 | P33: 2019-03-31 | Q33: 2020-03-31 | R33: 2021-03-31 | S33: 2022-03-31 | T33: 2023-03-31 | U33: 2024-03-31
E34: Forecast start period flag | G34: flag | H34: =SUM(J34:U34) -> 1 | J34: =IF(AND($F31 >= J32, $F31 <= J33), 1, 0) -> 0 | K34: =IF(AND($F31 >= K32, $F31 <= K33), 1, 0) -> 0 | L34: 0 | M34: 0 | N34: 0 | O34: 0 | P34: 0 | Q34: 0 | R34: 1 | S34: =IF(AND($F31 >= S32, $F31 <= S33), 1, 0) -> 0 | T34: =IF(AND($F31 >= T32, $F31 <= T33), 1, 0) -> 0 | U34: =IF(AND($F31 >= U32, $F31 <= U33), 1, 0) -> 0
B36: Forecast end period flag
E37: =Inputs!E$26 -> Forecast start date | F37: =Inputs!F$26 -> 2020-04-01 | G37: =Inputs!G$26 -> date
E38: =Inputs!E$27 -> Forecast duration | F38: =Inputs!F$27 -> 5 | G38: =Inputs!G$27 -> years
E39: Forecast end date | F39: =DATE(YEAR(F37) + F38, MONTH(F37), DAY(F37) - 1) -> 2025-03-31 | G39: date
E41: =E$39 -> Forecast end date | F41: =F$39 -> 2025-03-31 | G41: =G$39 -> date
E42: =E$20 -> Model period beginning | F42: 00:00:00 | G42: date | H42: 00:00:00 | I42: 00:00:00 | J42: 2012-04-01 | K42: 2013-04-01 | L42: 2014-04-01 | M42: 2015-04-01 | N42: 2016-04-01 | O42: 2017-04-01 | P42: 2018-04-01 | Q42: 2019-04-01 | R42: 2020-04-01 | S42: 2021-04-01 | T42: 2022-04-01 | U42: 2023-04-01
E43: =E$25 -> Model period ending | F43: 00:00:00 | G43: date | H43: 00:00:00 | I43: 00:00:00 | J43: 2013-03-31 | K43: 2014-03-31 | L43: 2015-03-31 | M43: 2016-03-31 | N43: 2017-03-31 | O43: 2018-03-31 | P43: 2019-03-31 | Q43: 2020-03-31 | R43: 2021-03-31 | S43: 2022-03-31 | T43: 2023-03-31 | U43: 2024-03-31
E44: Forecast end period flag | G44: flag | H44: =SUM(J44:U44) -> 0 | J44: =IF(AND($F41 >= J42, $F41 <= J43), 1, 0) -> 0 | K44: 0 | L44: 0 | M44: 0 | N44: 0 | O44: 0 | P44: 0 | Q44: 0 | R44: 0 | S44: 0 | T44: 0 | U44: 0
B46: Forecast period flag
E47: =E$34 -> Forecast start period flag | F47: =F$34 -> 0 | G47: flag | H47: 1 | I47: 0 | J47: 0 | K47: 0 | L47: 0 | M47: 0 | N47: 0 | O47: 0 | P47: 0 | Q47: 0 | R47: 1 | S47: 0 | T47: 0 | U47: 0
E48: =E$44 -> Forecast end period flag | F48: =F$44 -> 0 | G48: flag | H48: 0 | I48: 0 | J48: 0 | K48: 0 | L48: 0 | M48: 0 | N48: 0 | O48: 0 | P48: 0 | Q48: 0 | R48: 0 | S48: 0 | T48: 0 | U48: 0
E49: Forecast period flag | G49: flag | H49: =SUM(J49:U49) -> 4 | J49: =J47 + I49 - I48 -> 0 | K49: =K47 + J49 - J48 -> 0 | L49: 0 | M49: 0 | N49: 0 | O49: 0 | P49: 0 | Q49: 0 | R49: 1 | S49: =S47 + R49 - R48 -> 1 | T49: =T47 + S49 - S48 -> 1 | U49: =U47 + T49 - T48 -> 1
E50: Total number of forecast periods | F50: =SUM(J49:U49) -> 4 | G50: periods
B52: Pre-forecast period flag
E53: =E$14 -> 1st model column flag | F53: =F$14 -> 0 | G53: flag | H53: 1 | I53: 0 | J53: 1 | K53: 0 | L53: 0 | M53: 0 | N53: 0 | O53: 0 | P53: 0 | Q53: 0 | R53: 0 | S53: 0 | T53: 0 | U53: 0
E54: =E$34 -> Forecast start period flag | F54: =F$34 -> 0 | G54: flag | H54: 1 | I54: 0 | J54: 0 | K54: 0 | L54: 0 | M54: 0 | N54: 0 | O54: 0 | P54: 0 | Q54: 0 | R54: 1 | S54: 0 | T54: 0 | U54: 0
E55: Pre-forecast period flag | G55: flag | H55: =SUM(J55:U55) -> 8 | J55: =J53 + I55 - J54 -> 1 | K55: =K53 + J55 - K54 -> 1 | L55: 1 | M55: 1 | N55: 1 | O55: 1 | P55: 1 | Q55: 1 | R55: 0 | S55: =S53 + R55 - S54 -> 0 | T55: =T53 + S55 - T54 -> 0 | U55: =U53 + T55 - U54 -> 0
E56: Pre-forecast period flag - total | F56: =SUM(J55:U55) -> 8 | G56: periods
B58: First post-forecast period flag
E59: =E$44 -> Forecast end period flag | F59: =F$44 -> 0 | G59: flag | H59: 0 | I59: 0 | J59: 0 | K59: 0 | L59: 0 | M59: 0 | N59: 0 | O59: 0 | P59: 0 | Q59: 0 | R59: 0 | S59: 0 | T59: 0 | U59: 0
E60: First post-forecast period flag | G60: flag | H60: =SUM(J60:U60) -> 0 | J60: =I59 -> 0 | K60: =J59 -> 0 | L60: 0 | M60: 0 | N60: 0 | O60: 0 | P60: 0 | Q60: 0 | R60: 0 | S60: =R59 -> 0 | T60: =S59 -> 0 | U60: =T59 -> 0
B62: Post-forecast period flag
E63: =E$60 -> First post-forecast period flag | F63: 0 | G63: flag | H63: 0 | I63: 0 | J63: 0 | K63: 0 | L63: 0 | M63: 0 | N63: 0 | O63: 0 | P63: 0 | Q63: 0 | R63: 0 | S63: 0 | T63: 0 | U63: 0
E64: Post-forecast period flag | G64: flag | H64: =SUM(J64:U64) -> 0 | J64: =J63 + I64 -> 0 | K64: =K63 + J64 -> 0 | L64: 0 | M64: 0 | N64: 0 | O64: 0 | P64: 0 | Q64: 0 | R64: 0 | S64: =S63 + R64 -> 0 | T64: =T63 + S64 -> 0 | U64: =U63 + T64 -> 0
E65: Post-forecast period - total | F65: =SUM(J64:U64) -> 0 | G65: periods
A67: MODEL TIMELINE
B70: Timeline label
E71: =E$14 -> 1st model column flag | F71: 0 | G71: flag | H71: 1 | I71: 0 | J71: 1 | K71: 0 | L71: 0 | M71: 0 | N71: 0 | O71: 0 | P71: 0 | Q71: 0 | R71: 0 | S71: 0 | T71: 0 | U71: 0
E72: =E$34 -> Forecast start period flag | F72: =F$34 -> 0 | G72: flag | H72: 1 | I72: 0 | J72: 0 | K72: 0 | L72: 0 | M72: 0 | N72: 0 | O72: 0 | P72: 0 | Q72: 0 | R72: 1 | S72: 0 | T72: 0 | U72: 0
E73: =E$60 -> First post-forecast period flag | F73: 0 | G73: flag | H73: 0 | I73: 0 | J73: 0 | K73: 0 | L73: 0 | M73: 0 | N73: 0 | O73: 0 | P73: 0 | Q73: 0 | R73: 0 | S73: 0 | T73: 0 | U73: 0
E74: Timeline label counter | G74: counter | J74: =I74 + SUM(J71:J73) -> 1 | K74: 1 | L74: 1 | M74: 1 | N74: 1 | O74: 1 | P74: 1 | Q74: 1 | R74: 2 | S74: =R74 + SUM(S71:S73) -> 2 | T74: =S74 + SUM(T71:T73) -> 2 | U74: =T74 + SUM(U71:U73) -> 2
E76: =Inputs!E$20 -> Pre - forecast period | F76: =Inputs!F$20 -> Pre-Fcst | G76: =Inputs!G$20 -> label
E77: =Inputs!E$21 -> Forecast period | F77: =Inputs!F$21 -> Forecast | G77: =Inputs!G$21 -> label
E78: =Inputs!E$22 -> Post - forecast period | F78: =Inputs!F$22 -> Post-Fcst | G78: =Inputs!G$22 -> label
E79: =E$74 -> Timeline label counter | F79: 0 | G79: counter | H79: 0 | I79: 0 | J79: 1 | K79: 1 | L79: 1 | M79: 1 | N79: 1 | O79: 1 | P79: 1 | Q79: 1 | R79: 2 | S79: 2 | T79: 2 | U79: 2
E80: Timeline label | G80: label | J80: =INDEX($F76:$F78, J79) -> Pre-Fcst | K80: Pre-Fcst | L80: Pre-Fcst | M80: Pre-Fcst | N80: Pre-Fcst | O80: Pre-Fcst | P80: Pre-Fcst | Q80: Pre-Fcst | R80: Forecast | S80: =INDEX($F76:$F78, S79) -> Forecast | T80: =INDEX($F76:$F78, T79) -> Forecast | U80: =INDEX($F76:$F78, U79) -> Forecast
B82: Modelling period check
E83: =E$55 -> Pre-forecast period flag | F83: =F$55 -> 0 | G83: flag | H83: 8 | I83: 0 | J83: 1 | K83: 1 | L83: 1 | M83: 1 | N83: 1 | O83: 1 | P83: 1 | Q83: 1 | R83: 0 | S83: 0 | T83: 0 | U83: 0
E84: =E$49 -> Forecast period flag | F84: =F$49 -> 0 | G84: flag | H84: 4 | I84: 0 | J84: 0 | K84: 0 | L84: 0 | M84: 0 | N84: 0 | O84: 0 | P84: 0 | Q84: 0 | R84: 1 | S84: 1 | T84: 1 | U84: 1
E85: =E$64 -> Post-forecast period flag | F85: 0 | G85: flag | H85: 0 | I85: 0 | J85: 0 | K85: 0 | L85: 0 | M85: 0 | N85: 0 | O85: 0 | P85: 0 | Q85: 0 | R85: 0 | S85: 0 | T85: 0 | U85: 0
E86: No. of overlapping in flags | G86: # | H86: =SUM(J86:U86) -> 0 | J86: =MAX(0, SUM(J83:J85) - 1) -> 0 | K86: 0 | L86: 0 | M86: 0 | N86: 0 | O86: 0 | P86: 0 | Q86: 0 | R86: 0 | S86: =MAX(0, SUM(S83:S85) - 1) -> 0 | T86: =MAX(0, SUM(T83:T85) - 1) -> 0 | U86: =MAX(0, SUM(U83:U85) - 1) -> 0
E87: Overlapping in periods - total | F87: =SUM(J86:U86) -> 0 | G87: periods
E89: =E$11 -> Model column total | F89: =F$11 -> 12 | G89: =G$11 -> columns
E90: =E$87 -> Overlapping in periods - total | F90: =F$87 -> 0 | G90: =G$87 -> periods
E91: =E$56 -> Pre-forecast period flag - total | F91: =F$56 -> 8 | G91: =G$56 -> periods
E92: =E$50 -> Total number of forecast periods | F92: =F$50 -> 4 | G92: =G$50 -> periods
E93: =E$65 -> Post-forecast period - total | F93: =F$65 -> 0 | G93: =G$65 -> periods
E94: Modelling period check | F94: =IF(SUM(F89:F90) - SUM(F91:F93) <> 0, 1, 0) -> 0 | G94: check
A97: FINANCIAL YEAR
E99: =Inputs!E$16 -> First modelling column financial year# | F99: =Inputs!F$16 -> 2013 | G99: =Inputs!G$16 -> year #
E100: =Inputs!E$17 -> Financial year end month number | F100: =Inputs!F$17 -> 3 | G100: =Inputs!G$17 -> month #
E101: =E$25 -> Model period ending | F101: 00:00:00 | G101: date | H101: 00:00:00 | I101: 00:00:00 | J101: 2013-03-31 | K101: 2014-03-31 | L101: 2015-03-31 | M101: 2016-03-31 | N101: 2017-03-31 | O101: 2018-03-31 | P101: 2019-03-31 | Q101: 2020-03-31 | R101: 2021-03-31 | S101: 2022-03-31 | T101: 2023-03-31 | U101: 2024-03-31
E102: =E$14 -> 1st model column flag | F102: 0 | G102: flag | H102: 1 | I102: 0 | J102: 1 | K102: 0 | L102: 0 | M102: 0 | N102: 0 | O102: 0 | P102: 0 | Q102: 0 | R102: 0 | S102: 0 | T102: 0 | U102: 0
E103: Financial year ending | G103: year # | J103: =IF(J102 = 1, $F99, IF(J101 > (DATE(I103, $F100 + 1, 1) - 1), I103 + 1, I103)) -> 2013 | K103: 2014 | L103: 2015 | M103: 2016 | N103: 2017 | O103: 2018 | P103: 2019 | Q103: 2020 | R103: 2021 | S103: =IF(S102 = 1, $F99, IF(S101 > (DATE(R103, $F100 + 1, 1) - 1), R103 + 1, R103)) -> 2022 | T103: =IF(T102 = 1, $F99, IF(T101 > (DATE(S103, $F100 + 1, 1) - 1), S103 + 1, S103)) -> 2023 | U103: =IF(U102 = 1, $F99, IF(U101 > (DATE(T103, $F100 + 1, 1) - 1), T103 + 1, T103)) -> 2024

Sheet Indexation
A1: =RIGHT(CELL("filename", $A$1), LEN(CELL("filename", $A$1)) - SEARCH("]", CELL("filename", $A$1))) -> Indexation
E2: =Time!E$25 -> Model period ending | J2: =Time!J$25 -> 2013-03-31 | K2: =Time!K$25 -> 2014-03-31 | L2: =Time!L$25 -> 2015-03-31 | M2: =Time!M$25 -> 2016-03-31 | N2: =Time!N$25 -> 2017-03-31 | O2: =Time!O$25 -> 2018-03-31 | P2: =Time!P$25 -> 2019-03-31 | Q2: =Time!Q$25 -> 2020-03-31 | R2: =Time!R$25 -> 2021-03-31 | S2: =Time!S$25 -> 2022-03-31 | T2: =Time!T$25 -> 2023-03-31 | U2: =Time!U$25 -> 2024-03-31
E3: =Time!E$80 -> Timeline label | J3: =Time!J$80 -> Pre-Fcst | K3: =Time!K$80 -> Pre-Fcst | L3: =Time!L$80 -> Pre-Fcst | M3: =Time!M$80 -> Pre-Fcst | N3: =Time!N$80 -> Pre-Fcst | O3: =Time!O$80 -> Pre-Fcst | P3: =Time!P$80 -> Pre-Fcst | Q3: =Time!Q$80 -> Pre-Fcst | R3: =Time!R$80 -> Forecast | S3: =Time!S$80 -> Forecast | T3: =Time!T$80 -> Forecast | U3: =Time!U$80 -> Forecast
E4: =Time!E$103 -> Financial year ending | J4: =Time!J$103 -> 2013 | K4: =Time!K$103 -> 2014 | L4: =Time!L$103 -> 2015 | M4: =Time!M$103 -> 2016 | N4: =Time!N$103 -> 2017 | O4: =Time!O$103 -> 2018 | P4: =Time!P$103 -> 2019 | Q4: =Time!Q$103 -> 2020 | R4: =Time!R$103 -> 2021 | S4: =Time!S$103 -> 2022 | T4: =Time!T$103 -> 2023 | U4: =Time!U$103 -> 2024
E5: =Time!E$10 -> Model column counter | F5: Constant | G5: Unit | H5: Total | J5: =Time!J$10 -> 1 | K5: =Time!K$10 -> 2 | L5: =Time!L$10 -> 3 | M5: =Time!M$10 -> 4 | N5: =Time!N$10 -> 5 | O5: =Time!O$10 -> 6 | P5: =Time!P$10 -> 7 | Q5: =Time!Q$10 -> 8 | R5: =Time!R$10 -> 9 | S5: =Time!S$10 -> 10 | T5: =Time!T$10 -> 11 | U5: =Time!U$10 -> 12
A7: CPIH INDEXATION
B9: CPIH: Index value series
E10: =Inputs!E$35 -> Consumer Price Index for April | F10: =Inputs!F$35 -> 0 | G10: =Inputs!G$35 -> index | H10: =Inputs!H$35 -> 0 | I10: =Inputs!I$35 -> 0 | J10: =Inputs!J$35 -> 95.9 | K10: =Inputs!K$35 -> 98 | L10: =Inputs!L$35 -> 99.6 | M10: =Inputs!M$35 -> 99.9 | N10: =Inputs!N$35 -> 100.6 | O10: =Inputs!O$35 -> 103.2 | P10: =Inputs!P$35 -> 105.5 | Q10: =Inputs!Q$35 -> 107.1548929 | R10: =Inputs!R$35 -> 0 | S10: =Inputs!S$35 -> 0 | T10: =Inputs!T$35 -> 0 | U10: =Inputs!U$35 -> 0
E11: =Inputs!E$36 -> Consumer Price Index for May | F11: =Inputs!F$36 -> 0 | G11: =Inputs!G$36 -> index | H11: =Inputs!H$36 -> 0 | I11: =Inputs!I$36 -> 0 | J11: =Inputs!J$36 -> 95.9 | K11: =Inputs!K$36 -> 98.2 | L11: =Inputs!L$36 -> 99.6 | M11: =Inputs!M$36 -> 100.1 | N11: =Inputs!N$36 -> 100.8 | O11: =Inputs!O$36 -> 103.5 | P11: =Inputs!P$36 -> 105.9 | Q11: =Inputs!Q$36 -> 107.3327814 | R11: =Inputs!R$35 -> 0 | S11: =Inputs!S$35 -> 0 | T11: =Inputs!T$35 -> 0 | U11: =Inputs!U$35 -> 0
E12: =Inputs!E$37 -> Consumer Price Index for June | F12: =Inputs!F$37 -> 0 | G12: =Inputs!G$37 -> index | H12: =Inputs!H$37 -> 0 | I12: =Inputs!I$37 -> 0 | J12: =Inputs!J$37 -> 95.6 | K12: =Inputs!K$37 -> 98 | L12: =Inputs!L$37 -> 99.8 | M12: =Inputs!M$37 -> 100.1 | N12: =Inputs!N$37 -> 101 | O12: =Inputs!O$37 -> 103.5 | P12: =Inputs!P$37 -> 105.9 | Q12: =Inputs!Q$37 -> 107.5109651 | R12: =Inputs!R$35 -> 0 | S12: =Inputs!S$35 -> 0 | T12: =Inputs!T$35 -> 0 | U12: =Inputs!U$35 -> 0
E13: =Inputs!E$38 -> Consumer Price Index for July | F13: =Inputs!F$38 -> 0 | G13: =Inputs!G$38 -> index | H13: =Inputs!H$38 -> 0 | I13: =Inputs!I$38 -> 0 | J13: =Inputs!J$38 -> 95.7 | K13: =Inputs!K$38 -> 98 | L13: =Inputs!L$38 -> 99.6 | M13: =Inputs!M$38 -> 100 | N13: =Inputs!N$38 -> 100.9 | O13: =Inputs!O$38 -> 103.5 | P13: =Inputs!P$38 -> 105.9 | Q13: =Inputs!Q$38 -> 107.6894447 | R13: =Inputs!R$35 -> 0 | S13: =Inputs!S$35 -> 0 | T13: =Inputs!T$35 -> 0 | U13: =Inputs!U$35 -> 0
E14: =Inputs!E$39 -> Consumer Price Index for August | F14: =Inputs!F$39 -> 0 | G14: =Inputs!G$39 -> index | H14: =Inputs!H$39 -> 0 | I14: =Inputs!I$39 -> 0 | J14: =Inputs!J$39 -> 96.1 | K14: =Inputs!K$39 -> 98.4 | L14: =Inputs!L$39 -> 99.9 | M14: =Inputs!M$39 -> 100.3 | N14: =Inputs!N$39 -> 101.2 | O14: =Inputs!O$39 -> 104 | P14: =Inputs!P$39 -> 106.5 | Q14: =Inputs!Q$39 -> 107.8682206 | R14: =Inputs!R$35 -> 0 | S14: =Inputs!S$35 -> 0 | T14: =Inputs!T$35 -> 0 | U14: =Inputs!U$35 -> 0
E15: =Inputs!E$40 -> Consumer Price Index for September | F15: =Inputs!F$40 -> 0 | G15: =Inputs!G$40 -> index | H15: =Inputs!H$40 -> 0 | I15: =Inputs!I$40 -> 0 | J15: =Inputs!J$40 -> 96.4 | K15: =Inputs!K$40 -> 98.7 | L15: =Inputs!L$40 -> 100 | M15: =Inputs!M$40 -> 100.2 | N15: =Inputs!N$40 -> 101.5 | O15: =Inputs!O$40 -> 104.3 | P15: =Inputs!P$40 -> 106.6 | Q15: =Inputs!Q$40 -> 108.0472932 | R15: =Inputs!R$35 -> 0 | S15: =Inputs!S$35 -> 0 | T15: =Inputs!T$35 -> 0 | U15: =Inputs!U$35 -> 0
E16: =Inputs!E$41 -> Consumer Price Index for October | F16: =Inputs!F$41 -> 0 | G16: =Inputs!G$41 -> index | H16: =Inputs!H$41 -> 0 | I16: =Inputs!I$41 -> 0 | J16: =Inputs!J$41 -> 96.8 | K16: =Inputs!K$41 -> 98.8 | L16: =Inputs!L$41 -> 100.1 | M16: =Inputs!M$41 -> 100.3 | N16: =Inputs!N$41 -> 101.6 | O16: =Inputs!O$41 -> 104.4 | P16: =Inputs!P$41 -> 106.7 | Q16: =Inputs!Q$41 -> 108.2266632 | R16: =Inputs!R$35 -> 0 | S16: =Inputs!S$35 -> 0 | T16: =Inputs!T$35 -> 0 | U16: =Inputs!U$35 -> 0
E17: =Inputs!E$42 -> Consumer Price Index for November | F17: =Inputs!F$42 -> 0 | G17: =Inputs!G$42 -> index | H17: =Inputs!H$42 -> 0 | I17: =Inputs!I$42 -> 0 | J17: =Inputs!J$42 -> 97 | K17: =Inputs!K$42 -> 98.8 | L17: =Inputs!L$42 -> 99.9 | M17: =Inputs!M$42 -> 100.3 | N17: =Inputs!N$42 -> 101.8 | O17: =Inputs!O$42 -> 104.7 | P17: =Inputs!P$42 -> 106.9 | Q17: =Inputs!Q$42 -> 108.4063309 | R17: =Inputs!R$35 -> 0 | S17: =Inputs!S$35 -> 0 | T17: =Inputs!T$35 -> 0 | U17: =Inputs!U$35 -> 0
E18: =Inputs!E$43 -> Consumer Price Index for December | F18: =Inputs!F$43 -> 0 | G18: =Inputs!G$43 -> index | H18: =Inputs!H$43 -> 0 | I18: =Inputs!I$43 -> 0 | J18: =Inputs!J$43 -> 97.3 | K18: =Inputs!K$43 -> 99.2 | L18: =Inputs!L$43 -> 99.9 | M18: =Inputs!M$43 -> 100.4 | N18: =Inputs!N$43 -> 102.2 | O18: =Inputs!O$43 -> 105 | P18: =Inputs!P$43 -> 107.1 | Q18: =Inputs!Q$43 -> 108.5862969 | R18: =Inputs!R$35 -> 0 | S18: =Inputs!S$35 -> 0 | T18: =Inputs!T$35 -> 0 | U18: =Inputs!U$35 -> 0
E19: =Inputs!E$44 -> Consumer Price Index for January | F19: =Inputs!F$44 -> 0 | G19: =Inputs!G$44 -> index | H19: =Inputs!H$44 -> 0 | I19: =Inputs!I$44 -> 0 | J19: =Inputs!J$44 -> 97 | K19: =Inputs!K$44 -> 98.7 | L19: =Inputs!L$44 -> 99.2 | M19: =Inputs!M$44 -> 99.9 | N19: =Inputs!N$44 -> 101.8 | O19: =Inputs!O$44 -> 104.5 | P19: =Inputs!P$44 -> 106.4 | Q19: =Inputs!Q$44 -> 108.7593906 | R19: =Inputs!R$35 -> 0 | S19: =Inputs!S$35 -> 0 | T19: =Inputs!T$35 -> 0 | U19: =Inputs!U$35 -> 0
E20: =Inputs!E$45 -> Consumer Price Index for February | F20: =Inputs!F$45 -> 0 | G20: =Inputs!G$45 -> index | H20: =Inputs!H$45 -> 0 | I20: =Inputs!I$45 -> 0 | J20: =Inputs!J$45 -> 97.5 | K20: =Inputs!K$45 -> 99.1 | L20: =Inputs!L$45 -> 99.5 | M20: =Inputs!M$45 -> 100.1 | N20: =Inputs!N$45 -> 102.4 | O20: =Inputs!O$45 -> 104.9 | P20: =Inputs!P$45 -> 106.8 | Q20: =Inputs!Q$45 -> 108.9327604 | R20: =Inputs!R$35 -> 0 | S20: =Inputs!S$35 -> 0 | T20: =Inputs!T$35 -> 0 | U20: =Inputs!U$35 -> 0
E21: =Inputs!E$46 -> Consumer Price Index for March | F21: =Inputs!F$46 -> 0 | G21: =Inputs!G$46 -> index | H21: =Inputs!H$46 -> 0 | I21: =Inputs!I$46 -> 0 | J21: =Inputs!J$46 -> 97.8 | K21: =Inputs!K$46 -> 99.3 | L21: =Inputs!L$46 -> 99.6 | M21: =Inputs!M$46 -> 100.4 | N21: =Inputs!N$46 -> 102.7 | O21: =Inputs!O$46 -> 105.1 | P21: =Inputs!P$46 -> 106.9772993 | Q21: =Inputs!Q$46 -> 109.1064064 | R21: =Inputs!R$35 -> 0 | S21: =Inputs!S$35 -> 0 | T21: =Inputs!T$35 -> 0 | U21: =Inputs!U$35 -> 0
E23: =Inputs!E$48 -> CPIH: Assumed percentage increase for unpopulated monthly values | F23: =Inputs!F$48 -> 0 | G23: =Inputs!G$48 -> % | H23: =Inputs!H$48 -> 0 | I23: =Inputs!I$48 -> 0 | J23: =Inputs!J$48 -> 0 | K23: =Inputs!K$48 -> 0 | L23: =Inputs!L$48 -> 0 | M23: =Inputs!M$48 -> 0 | N23: =Inputs!N$48 -> 0 | O23: =Inputs!O$48 -> 0 | P23: =Inputs!P$48 -> 0 | Q23: =Inputs!Q$48 -> 0 | R23: =Inputs!R$48 -> 0.01952680059 | S23: =Inputs!S$48 -> 0.01981340357 | T23: =Inputs!T$48 -> 0.01999586273 | U23: =Inputs!U$48 -> 0.02000000218
E25: CPIH: April - index | G25: index | J25: =IF(J10 > 0, J10, I25 * (1 + J$23)) -> 95.9 | K25: =IF(K10 > 0, K10, J25 * (1 + K$23)) -> 98 | L25: 99.6 | M25: 99.9 | N25: 100.6 | O25: 103.2 | P25: =IF(P10 > 0, P10, O25 * (1 + P$23)) -> 105.5 | Q25: 107.1548929 | R25: 109.2472852 | S25: 111.4118457 | T25: 113.6396217 | U25: 115.9124144
E26: CPIH: May - index | G26: index | J26: =IF(J11 > 0, J11, I26 * (1 + J$23)) -> 95.9 | K26: 98.2 | L26: 99.6 | M26: 100.1 | N26: 100.8 | O26: 103.5 | P26: 105.9 | Q26: 107.3327814 | R26: 109.4286472 | S26: 111.5968011 | T26: 113.8282755 | U26: 116.1048412
E27: CPIH: June - index | G27: index | J27: 95.6 | K27: 98 | L27: 99.8 | M27: 100.1 | N27: 101 | O27: 103.5 | P27: 105.9 | Q27: 107.5109651 | R27: 109.6103103 | S27: 111.7820636 | T27: 114.0172424 | U27: 116.2975875
E28: CPIH: July - index | G28: index | J28: 95.7 | K28: 98 | L28: 99.6 | M28: 100 | N28: 100.9 | O28: 103.5 | P28: 105.9 | Q28: 107.6894447 | R28: 109.792275 | S28: 111.9676337 | T28: 114.2065231 | U28: 116.4906538
E29: CPIH: August - index | G29: index | J29: 96.1 | K29: 98.4 | L29: 99.9 | M29: 100.3 | N29: 101.2 | O29: 104 | P29: 106.5 | Q29: 107.8682206 | R29: 109.9745418 | S29: 112.1535118 | T29: 114.396118 | U29: 116.6840406
E30: CPIH: September- index | G30: index | J30: 96.4 | K30: 98.7 | L30: 100 | M30: 100.2 | N30: 101.5 | O30: 104.3 | P30: 106.6 | Q30: 108.0472932 | R30: 110.1571112 | S30: 112.3396985 | T30: 114.5860277 | U30: 116.8777485
E31: CPIH: October - index | G31: index | J31: 96.8 | K31: 98.8 | L31: 100.1 | M31: 100.3 | N31: 101.6 | O31: 104.4 | P31: 106.7 | Q31: 108.2266632 | R31: 110.3399836 | S31: 112.5261943 | T31: 114.7762526 | U31: 117.0717779
E32: CPIH: November - index | G32: index | J32: 97 | K32: 98.8 | L32: 99.9 | M32: 100.3 | N32: 101.8 | O32: 104.7 | P32: 106.9 | Q32: 108.4063309 | R32: 110.5231597 | S32: 112.7129997 | T32: 114.9667933 | U32: 117.2661294
E33: CPIH: December - index | G33: index | J33: 97.3 | K33: 99.2 | L33: 99.9 | M33: 100.4 | N33: 102.2 | O33: 105 | P33: 107.1 | Q33: 108.5862969 | R33: 110.7066398 | S33: 112.9001151 | T33: 115.1576504 | U33: 117.4608036
E34: CPIH: January - index | G34: index | J34: 97 | K34: 98.7 | L34: 99.2 | M34: 99.9 | N34: 101.8 | O34: 104.5 | P34: 106.4 | Q34: 108.7593906 | R34: 110.8831136 | S34: 113.0800855 | T34: 115.3412193 | U34: 117.648044
E35: CPIH: February - index | G35: index | J35: 97.5 | K35: 99.1 | L35: 99.5 | M35: 100.1 | N35: 102.4 | O35: 104.9 | P35: 106.8 | Q35: 108.9327604 | R35: 111.0598686 | S35: 113.2603426 | T35: 115.5250809 | U35: 117.8355828
E36: CPIH: March - index | G36: index | J36: 97.8 | K36: 99.3 | L36: 99.6 | M36: 100.4 | N36: 102.7 | O36: 105.1 | P36: 106.9772993 | Q36: 109.1064064 | R36: 111.2369055 | S36: 113.4408872 | T36: 115.7092356 | U36: 118.0234205
E38: CPIH: Financial year average - index | G38: index | J38: =AVERAGE(J25:J36) -> 96.58333333 | K38: 98.6 | L38: 99.725 | M38: 100.1666667 | N38: 101.5416667 | O38: 104.2166667 | P38: 106.4314416 | Q38: 108.1351205 | R38: 110.2466535 | S38: 112.4310149 | T38: 114.67917 | U38: 116.9727537
A41: RPI INDEXATION
B43: RPI: Index value series
E44: =Inputs!E$52 -> Retail Price Index for April | F44: =Inputs!F$52 -> 0 | G44: =Inputs!G$52 -> index | H44: =Inputs!H$52 -> 0 | I44: =Inputs!I$52 -> 0 | J44: =Inputs!J$52 -> 242.5 | K44: =Inputs!K$52 -> 249.5 | L44: =Inputs!L$52 -> 255.7 | M44: =Inputs!M$52 -> 258 | N44: =Inputs!N$52 -> 261.4 | O44: =Inputs!O$52 -> 270.6 | P44: =Inputs!P$52 -> 279.7 | Q44: =Inputs!Q$52 -> 286.349541 | R44: =Inputs!R$52 -> 0 | S44: =Inputs!S$52 -> 0 | T44: =Inputs!T$52 -> 0 | U44: =Inputs!U$52 -> 0
E45: =Inputs!E$53 -> Retail Price Index for May | F45: =Inputs!F$53 -> 0 | G45: =Inputs!G$53 -> index | H45: =Inputs!H$53 -> 0 | I45: =Inputs!I$53 -> 0 | J45: =Inputs!J$53 -> 242.4 | K45: =Inputs!K$53 -> 250 | L45: =Inputs!L$53 -> 255.9 | M45: =Inputs!M$53 -> 258.5 | N45: =Inputs!N$53 -> 262.1 | O45: =Inputs!O$53 -> 271.7 | P45: =Inputs!P$53 -> 280.7 | Q45: =Inputs!Q$53 -> 287.026706 | R45: =Inputs!R$52 -> 0 | S45: =Inputs!S$52 -> 0 | T45: =Inputs!T$52 -> 0 | U45: =Inputs!U$52 -> 0
E46: =Inputs!E$54 -> Retail Price Index for June | F46: =Inputs!F$54 -> 0 | G46: =Inputs!G$54 -> index | H46: =Inputs!H$54 -> 0 | I46: =Inputs!I$54 -> 0 | J46: =Inputs!J$54 -> 241.8 | K46: =Inputs!K$54 -> 249.7 | L46: =Inputs!L$54 -> 256.3 | M46: =Inputs!M$54 -> 258.9 | N46: =Inputs!N$54 -> 263.1 | O46: =Inputs!O$54 -> 272.3 | P46: =Inputs!P$54 -> 281.5 | Q46: =Inputs!Q$54 -> 287.7054723 | R46: =Inputs!R$52 -> 0 | S46: =Inputs!S$52 -> 0 | T46: =Inputs!T$52 -> 0 | U46: =Inputs!U$52 -> 0
E47: =Inputs!E$55 -> Retail Price Index for July | F47: =Inputs!F$55 -> 0 | G47: =Inputs!G$55 -> index | H47: =Inputs!H$55 -> 0 | I47: =Inputs!I$55 -> 0 | J47: =Inputs!J$55 -> 242.1 | K47: =Inputs!K$55 -> 249.7 | L47: =Inputs!L$55 -> 256 | M47: =Inputs!M$55 -> 258.6 | N47: =Inputs!N$55 -> 263.4 | O47: =Inputs!O$55 -> 272.9 | P47: =Inputs!P$55 -> 281.7 | Q47: =Inputs!Q$55 -> 288.3858438 | R47: =Inputs!R$52 -> 0 | S47: =Inputs!S$52 -> 0 | T47: =Inputs!T$52 -> 0 | U47: =Inputs!U$52 -> 0
E48: =Inputs!E$56 -> Retail Price Index for August | F48: =Inputs!F$56 -> 0 | G48: =Inputs!G$56 -> index | H48: =Inputs!H$56 -> 0 | I48: =Inputs!I$56 -> 0 | J48: =Inputs!J$56 -> 243 | K48: =Inputs!K$56 -> 251 | L48: =Inputs!L$56 -> 257 | M48: =Inputs!M$56 -> 259.8 | N48: =Inputs!N$56 -> 264.4 | O48: =Inputs!O$56 -> 274.7 | P48: =Inputs!P$56 -> 284.2 | Q48: =Inputs!Q$56 -> 289.0678243 | R48: =Inputs!R$52 -> 0 | S48: =Inputs!S$52 -> 0 | T48: =Inputs!T$52 -> 0 | U48: =Inputs!U$52 -> 0
E49: =Inputs!E$57 -> Retail Price Index for September | F49: =Inputs!F$57 -> 0 | G49: =Inputs!G$57 -> index | H49: =Inputs!H$57 -> 0 | I49: =Inputs!I$57 -> 0 | J49: =Inputs!J$57 -> 244.2 | K49: =Inputs!K$57 -> 251.9 | L49: =Inputs!L$57 -> 257.6 | M49: =Inputs!M$57 -> 259.6 | N49: =Inputs!N$57 -> 264.9 | O49: =Inputs!O$57 -> 275.1 | P49: =Inputs!P$57 -> 284.1 | Q49: =Inputs!Q$57 -> 289.7514176 | R49: =Inputs!R$52 -> 0 | S49: =Inputs!S$52 -> 0 | T49: =Inputs!T$52 -> 0 | U49: =Inputs!U$52 -> 0
E50: =Inputs!E$58 -> Retail Price Index for October | F50: =Inputs!F$58 -> 0 | G50: =Inputs!G$58 -> index | H50: =Inputs!H$58 -> 0 | I50: =Inputs!I$58 -> 0 | J50: =Inputs!J$58 -> 245.6 | K50: =Inputs!K$58 -> 251.9 | L50: =Inputs!L$58 -> 257.7 | M50: =Inputs!M$58 -> 259.5 | N50: =Inputs!N$58 -> 264.8 | O50: =Inputs!O$58 -> 275.3 | P50: =Inputs!P$58 -> 284.5 | Q50: =Inputs!Q$58 -> 290.4366274 | R50: =Inputs!R$52 -> 0 | S50: =Inputs!S$52 -> 0 | T50: =Inputs!T$52 -> 0 | U50: =Inputs!U$52 -> 0
E51: =Inputs!E$59 -> Retail Price Index for November | F51: =Inputs!F$59 -> 0 | G51: =Inputs!G$59 -> index | H51: =Inputs!H$59 -> 0 | I51: =Inputs!I$59 -> 0 | J51: =Inputs!J$59 -> 245.6 | K51: =Inputs!K$59 -> 252.1 | L51: =Inputs!L$59 -> 257.1 | M51: =Inputs!M$59 -> 259.8 | N51: =Inputs!N$59 -> 265.5 | O51: =Inputs!O$59 -> 275.8 | P51: =Inputs!P$59 -> 284.6 | Q51: =Inputs!Q$59 -> 291.1234576 | R51: =Inputs!R$52 -> 0 | S51: =Inputs!S$52 -> 0 | T51: =Inputs!T$52 -> 0 | U51: =Inputs!U$52 -> 0
E52: =Inputs!E$60 -> Retail Price Index for December | F52: =Inputs!F$60 -> 0 | G52: =Inputs!G$60 -> index | H52: =Inputs!H$60 -> 0 | I52: =Inputs!I$60 -> 0 | J52: =Inputs!J$60 -> 246.8 | K52: =Inputs!K$60 -> 253.4 | L52: =Inputs!L$60 -> 257.5 | M52: =Inputs!M$60 -> 260.6 | N52: =Inputs!N$60 -> 267.1 | O52: =Inputs!O$60 -> 278.1 | P52: =Inputs!P$60 -> 285.6 | Q52: =Inputs!Q$60 -> 291.811912 | R52: =Inputs!R$52 -> 0 | S52: =Inputs!S$52 -> 0 | T52: =Inputs!T$52 -> 0 | U52: =Inputs!U$52 -> 0
E53: =Inputs!E$61 -> Retail Price Index for January | F53: =Inputs!F$61 -> 0 | G53: =Inputs!G$61 -> index | H53: =Inputs!H$61 -> 0 | I53: =Inputs!I$61 -> 0 | J53: =Inputs!J$61 -> 245.8 | K53: =Inputs!K$61 -> 252.6 | L53: =Inputs!L$61 -> 255.4 | M53: =Inputs!M$61 -> 258.8 | N53: =Inputs!N$61 -> 265.5 | O53: =Inputs!O$61 -> 276 | P53: =Inputs!P$61 -> 283 | Q53: =Inputs!Q$61 -> 292.5056779 | R53: =Inputs!R$52 -> 0 | S53: =Inputs!S$52 -> 0 | T53: =Inputs!T$52 -> 0 | U53: =Inputs!U$52 -> 0
E54: =Inputs!E$62 -> Retail Price Index for February | F54: =Inputs!F$62 -> 0 | G54: =Inputs!G$62 -> index | H54: =Inputs!H$62 -> 0 | I54: =Inputs!I$62 -> 0 | J54: =Inputs!J$62 -> 247.6 | K54: =Inputs!K$62 -> 254.2 | L54: =Inputs!L$62 -> 256.7 | M54: =Inputs!M$62 -> 260 | N54: =Inputs!N$62 -> 268.4 | O54: =Inputs!O$62 -> 278.1 | P54: =Inputs!P$62 -> 285 | Q54: =Inputs!Q$62 -> 293.2010932 | R54: =Inputs!R$52 -> 0 | S54: =Inputs!S$52 -> 0 | T54: =Inputs!T$52 -> 0 | U54: =Inputs!U$52 -> 0
E55: =Inputs!E$63 -> Retail Price Index for March | F55: =Inputs!F$63 -> 0 | G55: =Inputs!G$63 -> index | H55: =Inputs!H$63 -> 0 | I55: =Inputs!I$63 -> 0 | J55: =Inputs!J$63 -> 248.7 | K55: =Inputs!K$63 -> 254.8 | L55: =Inputs!L$63 -> 257.1 | M55: =Inputs!M$63 -> 261.1 | N55: =Inputs!N$63 -> 269.3 | O55: =Inputs!O$63 -> 278.3 | P55: =Inputs!P$63 -> 285.6739736 | Q55: =Inputs!Q$63 -> 293.8981617 | R55: =Inputs!R$52 -> 0 | S55: =Inputs!S$52 -> 0 | T55: =Inputs!T$52 -> 0 | U55: =Inputs!U$52 -> 0
E57: =Inputs!E$65 -> RPI: Assumed percentage increase for unpopulated monthly values | F57: =Inputs!F$65 -> 0 | G57: =Inputs!G$65 -> % | H57: =Inputs!H$65 -> 0 | I57: =Inputs!I$65 -> 0 | J57: =Inputs!J$65 -> 0 | K57: =Inputs!K$65 -> 0 | L57: =Inputs!L$65 -> 0 | M57: =Inputs!M$65 -> 0 | N57: =Inputs!N$65 -> 0 | O57: =Inputs!O$65 -> 0 | P57: =Inputs!P$65 -> 0 | Q57: =Inputs!Q$65 -> 0 | R57: =Inputs!R$65 -> 0.02894213953 | S57: =Inputs!S$65 -> 0.03024920517 | T57: =Inputs!T$65 -> 0.03066184435 | U57: =Inputs!U$65 -> 0.0306750996
E59: RPI: April - index | G59: index | J59: =IF(J44 > 0, J44, I59 * (1 + J$57)) -> 242.5 | K59: =IF(K44 > 0, K44, J59 * (1 + K$57)) -> 249.5 | L59: 255.7 | M59: 258 | N59: 261.4 | O59: 270.6 | P59: =IF(P44 > 0, P44, O59 * (1 + P$57)) -> 279.7 | Q59: =IF(Q44 > 0, Q44, P59 * (1 + Q$57)) -> 286.349541 | R59: =IF(R44 > 0, R44, Q59 * (1 + R$57)) -> 294.6371093 | S59: =IF(S44 > 0, S44, R59 * (1 + S$57)) -> 303.5496477 | T59: =IF(T44 > 0, T44, S59 * (1 + T$57)) -> 312.8570398 | U59: =IF(U44 > 0, U44, T59 * (1 + U$57)) -> 322.4539606
E60: RPI: May - index | G60: index | J60: =IF(J45 > 0, J45, I60 * (1 + J$57)) -> 242.4 | K60: 250 | L60: 255.9 | M60: 258.5 | N60: 262.1 | O60: 271.7 | P60: 280.7 | Q60: 287.026706 | R60: 295.3338729 | S60: 304.2674878 | T60: 313.5968902 | U60: 323.216506
E61: RPI: June - index | G61: index | J61: =IF(J46 > 0, J46, I61 * (1 + J$57)) -> 241.8 | K61: 249.7 | L61: 256.3 | M61: 258.9 | N61: 263.1 | O61: 272.3 | P61: 281.5 | Q61: 287.7054723 | R61: 296.0322842 | S61: 304.9870255 | T61: 314.3384903 | U61: 323.9808547
E62: RPI: July - index | G62: index | J62: =IF(J47 > 0, J47, I62 * (1 + J$57)) -> 242.1 | K62: 249.7 | L62: 256 | M62: 258.6 | N62: 263.4 | O62: 272.9 | P62: 281.7 | Q62: 288.3858438 | R62: 296.7323472 | S62: 305.7082648 | T62: 315.0818441 | U62: 324.747011
E63: RPI: August - index | G63: index | J63: =IF(J48 > 0, J48, I63 * (1 + J$57)) -> 243 | K63: 251 | L63: 257 | M63: 259.8 | N63: 264.4 | O63: 274.7 | P63: 284.2 | Q63: 289.0678243 | R63: 297.4340656 | S63: 306.4312097 | T63: 315.8269558 | U63: 325.5149791
E64: RPI: September- index | G64: index | J64: =IF(J49 > 0, J49, I64 * (1 + J$57)) -> 244.2 | K64: 251.9 | L64: 257.6 | M64: 259.6 | N64: 264.9 | O64: 275.1 | P64: 284.1 | Q64: 289.7514176 | R64: 298.1374435 | S64: 307.1558642 | T64: 316.5738295 | U64: 326.2847633
E65: RPI: October - index | G65: index | J65: =IF(J50 > 0, J50, I65 * (1 + J$57)) -> 245.6 | K65: 251.9 | L65: 257.7 | M65: 259.5 | N65: 264.8 | O65: 275.3 | P65: 284.5 | Q65: 290.4366274 | R65: 298.8424848 | S65: 307.8822324 | T65: 317.3224695 | U65: 327.0563679
E66: RPI: November - index | G66: index | J66: =IF(J51 > 0, J51, I66 * (1 + J$57)) -> 245.6 | K66: 252.1 | L66: 257.1 | M66: 259.8 | N66: 265.5 | O66: 275.8 | P66: 284.6 | Q66: 291.1234576 | R66: 299.5491933 | S66: 308.6103183 | T66: 318.0728799 | U66: 327.8297971
E67: RPI: December - index | G67: index | J67: =IF(J52 > 0, J52, I67 * (1 + J$57)) -> 246.8 | K67: 253.4 | L67: 257.5 | M67: 260.6 | N67: 267.1 | O67: 278.1 | P67: 285.6 | Q67: 291.811912 | R67: 300.2575731 | S67: 309.340126 | T67: 318.8250648 | U67: 328.6050555
E68: RPI: January - index | G68: index | J68: =IF(J53 > 0, J53, I68 * (1 + J$57)) -> 245.8 | K68: 252.6 | L68: 255.4 | M68: 258.8 | N68: 265.5 | O68: 276 | P68: 283 | Q68: 292.5056779 | R68: 300.971418 | S68: 310.0755642 | T68: 319.5830529 | U68: 329.3862949
E69: RPI: February - index | G69: index | J69: =IF(J54 > 0, J54, I69 * (1 + J$57)) -> 247.6 | K69: 254.2 | L69: 256.7 | M69: 260 | N69: 268.4 | O69: 278.1 | P69: 285 | Q69: 293.2010932 | R69: 301.6869601 | S69: 310.8127509 | T69: 320.3428431 | U69: 330.1693917
E70: RPI: March - index | G70: index | J70: =IF(J55 > 0, J55, I70 * (1 + J$57)) -> 248.7 | K70: 254.8 | L70: 257.1 | M70: 261.1 | N70: 269.3 | O70: 278.3 | P70: 285.6739736 | Q70: 293.8981617 | R70: 302.4042033 | S70: 311.5516901 | T70: 321.1044396 | U70: 330.9543502
E72: RPI: Financial year average - index | G72: index | J72: =AVERAGE(J59:J70) -> 244.675 | K72: 251.7333333 | L72: 256.6666667 | M72: 259.4333333 | N72: 264.9916667 | O72: 274.9083333 | P72: 283.3561645 | Q72: 290.1053112 | R72: 298.5015796 | S72: 307.5310152 | T72: 316.9604833 | U72: 326.6832777
A75: INFLATION
B77: Inflation of 2013 base prices FYA - RPI
E78: =Inputs!E$69 -> Year reference for FYA base price 1 | F78: =Inputs!F$69 -> 2013 | G78: =Inputs!G$69 -> year #
E79: =Inputs!E$72 -> Year reference for FYE end price | F79: =Inputs!F$72 -> 2020 | G79: =Inputs!G$72 -> year #
E80: =E$72 -> RPI: Financial year average - index | F80: 0 | G80: index | H80: 0 | I80: 0 | J80: 244.675 | K80: 251.7333333 | L80: 256.6666667 | M80: 259.4333333 | N80: 264.9916667 | O80: 274.9083333 | P80: 283.3561645 | Q80: 290.1053112 | R80: 298.5015796 | S80: 307.5310152 | T80: 316.9604833 | U80: 326.6832777
E81: =E$70 -> RPI: March - index | F81: 0 | G81: index | H81: 0 | I81: 0 | J81: 248.7 | K81: 254.8 | L81: 257.1 | M81: 261.1 | N81: 269.3 | O81: 278.3 | P81: 285.6739736 | Q81: 293.8981617 | R81: 302.4042033 | S81: 311.5516901 | T81: 321.1044396 | U81: 330.9543502
E82: ="RPI inflate from " & F78 & " FYA to " & F79 & " FYE" -> RPI inflate from 2013 FYA to 2020 FYE | F82: =INDEX($J81:$U81, 1, MATCH($F79,$J$4:$U$4)) / INDEX($J80:$U80, 1, MATCH($F78,$J$4:$U$4)) -> 1.201177733 | G82: factor
B84: Inflation of 2018 base prices FYA - RPI
E85: =Inputs!E$70 -> Year reference for FYA base price 2 | F85: =Inputs!F$70 -> 2018 | G85: =Inputs!G$70 -> year #
E86: =Inputs!E$72 -> Year reference for FYE end price | F86: =Inputs!F$72 -> 2020 | G86: =Inputs!G$72 -> year #
E87: =E$72 -> RPI: Financial year average - index | F87: 0 | G87: index | H87: 0 | I87: 0 | J87: 244.675 | K87: 251.7333333 | L87: 256.6666667 | M87: 259.4333333 | N87: 264.9916667 | O87: 274.9083333 | P87: 283.3561645 | Q87: 290.1053112 | R87: 298.5015796 | S87: 307.5310152 | T87: 316.9604833 | U87: 326.6832777
E88: =E$70 -> RPI: March - index | F88: 0 | G88: index | H88: 0 | I88: 0 | J88: 248.7 | K88: 254.8 | L88: 257.1 | M88: 261.1 | N88: 269.3 | O88: 278.3 | P88: 285.6739736 | Q88: 293.8981617 | R88: 302.4042033 | S88: 311.5516901 | T88: 321.1044396 | U88: 330.9543502
E89: ="RPI inflate from " & F85 & " FYA to " & F86 & " FYE" -> RPI inflate from 2018 FYA to 2020 FYE | F89: =INDEX($J88:$U88, 1, MATCH($F86,$J$4:$U$4)) / INDEX($J87:$U87, 1, MATCH($F85,$J$4:$U$4)) -> 1.069076947 | G89: factor
B91: Inflation of 2018 base prices FYE - RPI
E92: =Inputs!E$71 -> Year reference for FYE base price | F92: =Inputs!F$71 -> 2018 | G92: =Inputs!G$71 -> year #
E93: =Inputs!E$72 -> Year reference for FYE end price | F93: =Inputs!F$72 -> 2020 | G93: =Inputs!G$72 -> year #
E94: =E$70 -> RPI: March - index | F94: 0 | G94: index | H94: 0 | I94: 0 | J94: 248.7 | K94: 254.8 | L94: 257.1 | M94: 261.1 | N94: 269.3 | O94: 278.3 | P94: 285.6739736 | Q94: 293.8981617 | R94: 302.4042033 | S94: 311.5516901 | T94: 321.1044396 | U94: 330.9543502
E95: ="RPI inflate from " & F92 & " FYE to " & F93 & " FYE" -> RPI inflate from 2018 FYE to 2020 FYE | F95: =INDEX($J94:$U94, 1, MATCH($F93,$J$4:$U$4)) / INDEX($J94:$U94, 1, MATCH($F92,$J$4:$U$4)) -> 1.056048012 | G95: factor
A98: DEFLATION
E100: =Inputs!E$76 -> Year reference for FYE base price | F100: =Inputs!F$76 -> 2020 | G100: =Inputs!G$76 -> year #
E101: =Inputs!E$77 -> Year reference for FYA end price | F101: =Inputs!F$77 -> 2018 | G101: =Inputs!G$77 -> year #
E102: =Inputs!E$78 -> Year reference for FYE base price - IFRS 16 | F102: =Inputs!F$78 -> 2018 | G102: =Inputs!G$78 -> year #
E103: =E$36 -> CPIH: March - index | F103: =F$36 -> 0 | G103: index | H103: 0 | I103: 0 | J103: 97.8 | K103: 99.3 | L103: 99.6 | M103: 100.4 | N103: 102.7 | O103: 105.1 | P103: 106.9772993 | Q103: 109.1064064 | R103: 111.2369055 | S103: 113.4408872 | T103: 115.7092356 | U103: 118.0234205
E104: =E$38 -> CPIH: Financial year average - index | F104: 0 | G104: index | H104: 0 | I104: 0 | J104: 96.58333333 | K104: 98.6 | L104: 99.725 | M104: 100.1666667 | N104: 101.5416667 | O104: 104.2166667 | P104: 106.4314416 | Q104: 108.1351205 | R104: 110.2466535 | S104: 112.4310149 | T104: 114.67917 | U104: 116.9727537
E105: ="CPIH deflate from " & F100 & " FYE to " & F101 & " FYA" -> CPIH deflate from 2020 FYE to 2018 FYA | F105: =INDEX($J104:$U104, 1, MATCH($F101,$J$4:$U$4)) / INDEX($J103:$U103, 1, MATCH($F100,$J$4:$U$4)) -> 0.9551837521 | G105: factor
E106: ="CPIH deflate from " & F100 & " FYE to " & F101 & " FYE" -> CPIH deflate from 2020 FYE to 2018 FYE | F106: =INDEX($J103:$U103, 1, MATCH($F101,$J$4:$U$4)) / INDEX($J103:$U103, 1, MATCH($F100,$J$4:$U$4)) -> 0.9632798242 | G106: factor
E107: CPIH deflate from 2018 FYE to 2018 FYA - IFRS 16 | F107: =INDEX($J104:$U104, 1, MATCH($F101,$J$4:$U$4)) / INDEX($J103:$U103, 1, MATCH($F102,$J$4:$U$4)) -> 0.9915953061 | G107: factor

Sheet Calc
A1: =RIGHT(CELL("filename", $A$1), LEN(CELL("filename", $A$1)) - SEARCH("]", CELL("filename", $A$1))) -> Calc
E2: =Time!E$25 -> Model period ending | J2: =Time!J$25 -> 2013-03-31 | K2: =Time!K$25 -> 2014-03-31 | L2: =Time!L$25 -> 2015-03-31 | M2: =Time!M$25 -> 2016-03-31 | N2: =Time!N$25 -> 2017-03-31 | O2: =Time!O$25 -> 2018-03-31 | P2: =Time!P$25 -> 2019-03-31 | Q2: =Time!Q$25 -> 2020-03-31 | R2: =Time!R$25 -> 2021-03-31 | S2: =Time!S$25 -> 2022-03-31 | T2: =Time!T$25 -> 2023-03-31 | U2: =Time!U$25 -> 2024-03-31
E3: =Time!E$80 -> Timeline label | J3: =Time!J$80 -> Pre-Fcst | K3: =Time!K$80 -> Pre-Fcst | L3: =Time!L$80 -> Pre-Fcst | M3: =Time!M$80 -> Pre-Fcst | N3: =Time!N$80 -> Pre-Fcst | O3: =Time!O$80 -> Pre-Fcst | P3: =Time!P$80 -> Pre-Fcst | Q3: =Time!Q$80 -> Pre-Fcst | R3: =Time!R$80 -> Forecast | S3: =Time!S$80 -> Forecast | T3: =Time!T$80 -> Forecast | U3: =Time!U$80 -> Forecast
E4: =Time!E$103 -> Financial year ending | J4: =Time!J$103 -> 2013 | K4: =Time!K$103 -> 2014 | L4: =Time!L$103 -> 2015 | M4: =Time!M$103 -> 2016 | N4: =Time!N$103 -> 2017 | O4: =Time!O$103 -> 2018 | P4: =Time!P$103 -> 2019 | Q4: =Time!Q$103 -> 2020 | R4: =Time!R$103 -> 2021 | S4: =Time!S$103 -> 2022 | T4: =Time!T$103 -> 2023 | U4: =Time!U$103 -> 2024
E5: =Time!E$10 -> Model column counter | F5: Constant | G5: Unit | H5: Total | J5: =Time!J$10 -> 1 | K5: =Time!K$10 -> 2 | L5: =Time!L$10 -> 3 | M5: =Time!M$10 -> 4 | N5: =Time!N$10 -> 5 | O5: =Time!O$10 -> 6 | P5: =Time!P$10 -> 7 | Q5: =Time!Q$10 -> 8 | R5: =Time!R$10 -> 9 | S5: =Time!S$10 -> 10 | T5: =Time!T$10 -> 11 | U5: =Time!U$10 -> 12
A7: WATER SERVICES
B9: Water RCV closing balance at 31 March 2020
E10: =Inputs!E$85 -> Wholesale water closing RCV at 31 March 2020 (from PR14 FD) | F10: =Inputs!F$85 -> 1181.762796 | G10: =Inputs!G$85 -> £m
E11: =Inputs!E$86 -> Water ~ Total Adjustment RCV carry forward to PR19 | F11: =Inputs!F$86 -> 0.604 | G11: =Inputs!G$86 -> £m
E12: =Inputs!E$87 -> Water ~ CIS RCV inflation correction | F12: =Inputs!F$87 -> -21.29849079 | G12: =Inputs!G$87 -> £m
E13: =Inputs!E$88 -> Net performance payment / (penalty) applied to RCV for end of period ODI adjustments ~ Water resources | F13: =Inputs!F$88 -> 0 | G13: =Inputs!G$88 -> £m
E14: =Inputs!E$89 -> Net performance payment / (penalty) applied to RCV for end of period ODI adjustments ~ Water network plus | F14: =Inputs!F$89 -> -0.358 | G14: =Inputs!G$89 -> £m
E15: =Inputs!E$90 -> Water: RCV adjustment from totex menu model | F15: =Inputs!F$90 -> -15.6 | G15: =Inputs!G$90 -> £m
E17: =Indexation!E$82 -> RPI inflate from 2013 FYA to 2020 FYE | F17: =Indexation!F$82 -> 1.201177733 | G17: =Indexation!G$82 -> factor
E19: =E10 & " at 2020 FYE price base" -> Wholesale water closing RCV at 31 March 2020 (from PR14 FD) at 2020 FYE price base | F19: =F10 * F$17 -> 1419.507156 | G19: £m
E20: Water ~ Total Adjustment RCV carry forward to PR19 at 2020 FYE price base | F20: 0.7255113505 | G20: £m
E21: Water ~ CIS RCV inflation correction at 2020 FYE price base | F21: -25.58327288 | G21: £m
E22: Net performance payment / (penalty) applied to RCV for end of period ODI adjustments ~ Water resources at 2020 FYE price base | F22: 0 | G22: £m
E23: Net performance payment / (penalty) applied to RCV for end of period ODI adjustments ~ Water network plus at 2020 FYE price base | F23: -0.4300216283 | G23: £m
E24: Water: RCV adjustment from totex menu model at 2020 FYE price base | F24: -18.73837263 | G24: £m
E26: =Inputs!E$91 -> Water ~ Other adjustment to wholesale RCV | F26: =Inputs!F$91 -> 0 | G26: =Inputs!G$91 -> £m
E27: =Inputs!E$92 -> Water ~ NPV effect of 50% of proceeds from disposals of interest in land | F27: =Inputs!F$92 -> 0.575 | G27: =Inputs!G$92 -> £m
E29: =Indexation!E$95 -> RPI inflate from 2018 FYE to 2020 FYE | F29: =Indexation!F$95 -> 1.056048012 | G29: =Indexation!G$95 -> factor
E30: =Indexation!E$89 -> RPI inflate from 2018 FYA to 2020 FYE | F30: =Indexation!F$89 -> 1.069076947 | G30: =Indexation!G$89 -> factor
E32: =E26 & " at 2020 FYE price base" -> Water ~ Other adjustment to wholesale RCV at 2020 FYE price base | F32: =F26 * F29 -> 0 | G32: £m
E33: =E27 & " at 2020 FYE price base" -> Water ~ NPV effect of 50% of proceeds from disposals of interest in land at 2020 FYE price base | F33: =F27 * F30 -> 0.6147192446 | G33: £m
C35: Values expressed in 2017-18 FYE CPIH deflated price base for table App8
E36: =E$19 -> Wholesale water closing RCV at 31 March 2020 (from PR14 FD) at 2020 FYE price base | F36: =F$19 -> 1419.507156 | G36: £m
E37: =E$20 -> Water ~ Total Adjustment RCV carry forward to PR19 at 2020 FYE price base | F37: =F$20 -> 0.7255113505 | G37: £m
E38: =E$21 -> Water ~ CIS RCV inflation correction at 2020 FYE price base | F38: =F$21 -> -25.58327288 | G38: £m
E39: =E$33 -> Water ~ NPV effect of 50% of proceeds from disposals of interest in land at 2020 FYE price base | F39: =F$33 -> 0.6147192446 | G39: £m
E40: =E$22 -> Net performance payment / (penalty) applied to RCV for end of period ODI adjustments ~ Water resources at 2020 FYE price base | F40: =F$22 -> 0 | G40: £m
E41: =E$23 -> Net performance payment / (penalty) applied to RCV for end of period ODI adjustments ~ Water network plus at 2020 FYE price base | F41: =F$23 -> -0.4300216283 | G41: £m
E42: =E$24 -> Water: RCV adjustment from totex menu model at 2020 FYE price base | F42: =F$24 -> -18.73837263 | G42: £m
E43: =E$32 -> Water ~ Other adjustment to wholesale RCV at 2020 FYE price base | F43: =F$32 -> 0 | G43: £m
E45: =Indexation!E$106 -> CPIH deflate from 2020 FYE to 2018 FYE | F45: =Indexation!F$106 -> 0.9632798242 | G45: =Indexation!G$106 -> factor
E47: Wholesale water closing RCV at 31 March 2020 before midnight adjustments at 2017-18 FYE CPIH deflated price base | F47: =F36 * F$45 -> 1367.382603 | G47: £m
E48: Water ~ Total Adjustment RCV carry forward to PR19 at 2017-18 FYE CPIH deflated price base | F48: 0.6988704461 | G48: £m
E49: Water ~ CIS RCV inflation correction at 2017-18 FYE CPIH deflated price base | F49: -24.6438506 | G49: £m
E50: Water ~ NPV effect of 50% of proceeds from disposals of interest in land at 2017-18 FYE CPIH deflated price base | F50: 0.5921466458 | G50: £m
E51: Water ~ ODI RCV adjustment allocated to Water resources at 2017-18 FYE CPIH deflated price base | F51: 0 | G51: £m
E52: Water ~ ODI RCV adjustment allocated to Water network plus at 2017-18 FYE CPIH deflated price base | F52: -0.4142311585 | G52: £m
E53: Water ~ Totex menu RCV adjustment at 2017-18 FYE CPIH deflated price base | F53: -18.05029629 | G53: £m
E54: Water ~ Other adjustment to wholesale RCV at 2017-18 FYE CPIH deflated price base | F54: 0 | G54: £m
E55: Total wholesale water RCV at 31 March 2020 post midnight adjustments before allocation to price control units at 2017-18 FYE CPIH deflated price base | F55: =SUM(F47:F54) -> 1325.565243 | G55: £m
C57: PR14 reconciliation adjustments expressed in 2017-18 FYA CPIH deflated price base
E58: =E$20 -> Water ~ Total Adjustment RCV carry forward to PR19 at 2020 FYE price base | F58: =F$20 -> 0.7255113505 | G58: £m
E59: =E$21 -> Water ~ CIS RCV inflation correction at 2020 FYE price base | F59: =F$21 -> -25.58327288 | G59: £m
E60: =E$33 -> Water ~ NPV effect of 50% of proceeds from disposals of interest in land at 2020 FYE price base | F60: =F$33 -> 0.6147192446 | G60: £m
E61: =E$22 -> Net performance payment / (penalty) applied to RCV for end of period ODI adjustments ~ Water resources at 2020 FYE price base | F61: =F$22 -> 0 | G61: £m
E62: =E$23 -> Net performance payment / (penalty) applied to RCV for end of period ODI adjustments ~ Water network plus at 2020 FYE price base | F62: =F$23 -> -0.4300216283 | G62: £m
E63: =E$24 -> Water: RCV adjustment from totex menu model at 2020 FYE price base | F63: =F$24 -> -18.73837263 | G63: £m
E64: =E$32 -> Water ~ Other adjustment to wholesale RCV at 2020 FYE price base | F64: =F$32 -> 0 | G64: £m
E66: =Indexation!E$105 -> CPIH deflate from 2020 FYE to 2018 FYA | F66: =Indexation!F$105 -> 0.9551837521 | G66: =Indexation!G$105 -> factor
E68: Water ~ Total adjustment RCV carry forward to PR19 at 2017-18 FYA CPIH deflated price base | F68: =F58 * F$66 -> 0.6929966539 | G68: £m
E69: Water ~ CIS RCV inflation correction at 2017-18 FYA CPIH deflated price base | F69: -24.43672658 | G69: £m
E70: Water ~ NPV effect of 50% of proceeds from disposals of interest in land at 2017-18 FYA CPIH deflated price base | F70: 0.5871698345 | G70: £m
E71: ODI end of period RCV adjustment ~ Water resources at 2017-18 FYA CPIH deflated price base | F71: 0 | G71: £m
E72: ODI end of period RCV adjustment ~ Water network plus at 2017-18 FYA CPIH deflated price base | F72: -0.4107496724 | G72: £m
E73: Water: Totex menu RCV adjustment at 2017-18 FYA CPIH deflated price base | F73: -17.89858907 | G73: £m
E74: Water ~ Other adjustment to wholesale RCV at 2017-18 FYA CPIH deflated price base | F74: 0 | G74: £m
C76: IFRS16 RCV adjustments expressed in 2017-18 FYA CPIH deflated price base
E77: =Inputs!E$99 -> Water resources IFRS16 RCV adjustment | F77: =Inputs!F$99 -> 0.467 | G77: =Inputs!G$99 -> £m
E78: =Inputs!E$100 -> Water network plus IFRS16 RCV adjustment | F78: =Inputs!F$100 -> 2.058 | G78: =Inputs!G$100 -> £m
E80: =Indexation!E$107 -> CPIH deflate from 2018 FYE to 2018 FYA - IFRS 16 | F80: =Indexation!F$107 -> 0.9915953061 | G80: =Indexation!G$107 -> factor
E82: Water resources IFRS16 RCV adjustment at 2017-18 FYA CPIH deflated price base | F82: =F77 * F$80 -> 0.4630750079 | G82: £m
E83: Water network plus IFRS16 RCV adjustment at 2017-18 FYA CPIH deflated price base | F83: =F78 * F$80 -> 2.04070314 | G83: £m
B85: Total wholesale water RCV at 31 March 2020 post midnight adjustments before allocation to price control units at 2020 FYE price base
E86: =E$19 -> Wholesale water closing RCV at 31 March 2020 (from PR14 FD) at 2020 FYE price base | F86: 1419.507156 | G86: £m
E87: =E$20 -> Water ~ Total Adjustment RCV carry forward to PR19 at 2020 FYE price base | F87: =F$20 -> 0.7255113505 | G87: =G$20 -> £m
E88: =E$21 -> Water ~ CIS RCV inflation correction at 2020 FYE price base | F88: =F$21 -> -25.58327288 | G88: =G$21 -> £m
E89: =E$22 -> Net performance payment / (penalty) applied to RCV for end of period ODI adjustments ~ Water resources at 2020 FYE price base | F89: =F$22 -> 0 | G89: =G$22 -> £m
E90: =E$23 -> Net performance payment / (penalty) applied to RCV for end of period ODI adjustments ~ Water network plus at 2020 FYE price base | F90: =F$23 -> -0.4300216283 | G90: £m
E91: =E$24 -> Water: RCV adjustment from totex menu model at 2020 FYE price base | F91: =F$24 -> -18.73837263 | G91: =G$24 -> £m
E92: =E$32 -> Water ~ Other adjustment to wholesale RCV at 2020 FYE price base | F92: 0 | G92: £m
E93: =E$33 -> Water ~ NPV effect of 50% of proceeds from disposals of interest in land at 2020 FYE price base | F93: =F$33 -> 0.6147192446 | G93: =G$33 -> £m
E94: Total wholesale water RCV at 31 March 2020 post midnight adjustments before allocation to price control units at 2020 FYE price base | F94: =SUM(F86:F93) -> 1376.095719 | G94: £m
B96: Water resources
E97: =E$94 -> Total wholesale water RCV at 31 March 2020 post midnight adjustments before allocation to price control units at 2020 FYE price base | F97: 1376.095719 | G97: £m
E98: =Inputs!E$96 -> Water resources % of total wholesale water RCV ~ 31 March 2020 | F98: =Inputs!F$96 -> 0.05 | G98: =Inputs!G$96 -> %
E99: =E$89 -> Net performance payment / (penalty) applied to RCV for end of period ODI adjustments ~ Water resources at 2020 FYE price base | F99: =F$89 -> 0 | G99: £m
E100: =E$90 -> Net performance payment / (penalty) applied to RCV for end of period ODI adjustments ~ Water network plus at 2020 FYE price base | F100: =F$90 -> -0.4300216283 | G100: £m
E101: Water resources opening RCV at 2020 FYE price base | F101: =(F97 - F99 - F100) * F98 + F99 -> 68.82628705 | G101: £m
E103: =E$101 -> Water resources opening RCV at 2020 FYE price base | F103: 68.82628705 | G103: £m
E104: =Inputs!E$94 -> % of RCV to index by RPI - water services | F104: =Inputs!F$94 -> 0.5 | G104: =Inputs!G$94 -> %
E105: Water resources RPI linked RCV at 2020 FYE price base | F105: =F103 * F104 -> 34.41314352 | G105: £m
E107: =E$101 -> Water resources opening RCV at 2020 FYE price base | F107: 68.82628705 | G107: £m
E108: =Inputs!E$94 -> % of RCV to index by RPI - water services | F108: =Inputs!F$94 -> 0.5 | G108: =Inputs!G$94 -> %
E109: Water resources CPIH linked RCV at 2020 FYE price base | F109: =F107 * (1 - F108) -> 34.41314352 | G109: £m
E111: =E$105 -> Water resources RPI linked RCV at 2020 FYE price base | F111: 34.41314352 | G111: £m
E112: =E$109 -> Water resources CPIH linked RCV at 2020 FYE price base | F112: 34.41314352 | G112: £m
E114: =Indexation!E$105 -> CPIH deflate from 2020 FYE to 2018 FYA | F114: =Indexation!F$105 -> 0.9551837521 | G114: =Indexation!G$105 -> factor
E116: Water resources 2020 RCV RPI inflated ~ 1 April (opening balance excluding IFRS16 adjustment) at 2017-18 CPIH deflated price base | F116: =F111 * F$114 -> 32.87087555 | G116: £m
E117: Water resources 2020 RCV CPIH inflated ~ 1 April (opening balance excluding IFRS16 adjustment) at 2017-18 CPIH deflated price base | F117: =F112 * F$114 -> 32.87087555 | G117: £m
E119: =E82 -> Water resources IFRS16 RCV adjustment at 2017-18 FYA CPIH deflated price base | F119: =F82 -> 0.4630750079 | G119: =G82 -> £m
E120: =Inputs!E$94 -> % of RCV to index by RPI - water services | F120: =Inputs!F$94 -> 0.5 | G120: =Inputs!G$94 -> %
E121: Water resources IFRS16 adjustment RPI inflated RCV at 2017-18 FYA CPIH deflated price base | F121: =F119 * F120 -> 0.231537504 | G121: £m
E123: =E82 -> Water resources IFRS16 RCV adjustment at 2017-18 FYA CPIH deflated price base | F123: =F82 -> 0.4630750079 | G123: =G82 -> £m
E124: =Inputs!E$94 -> % of RCV to index by RPI - water services | F124: =Inputs!F$94 -> 0.5 | G124: =Inputs!G$94 -> %
E125: Water resources IFRS16 adjustment CPIH inflated RCV at 2017-18 FYA CPIH deflated price base | F125: =F123 * (1 - F124) -> 0.231537504 | G125: £m
E127: =E116 -> Water resources 2020 RCV RPI inflated ~ 1 April (opening balance excluding IFRS16 adjustment) at 2017-18 CPIH deflated price base | F127: =F116 -> 32.87087555 | G127: £m
E128: =E121 -> Water resources IFRS16 adjustment RPI inflated RCV at 2017-18 FYA CPIH deflated price base | F128: =F121 -> 0.231537504 | G128: £m
E129: Water resources 2020 RCV RPI inflated ~ 1 April (opening balance) at 2017-18 CPIH deflated price base | F129: =F127 + F128 -> 33.10241305 | G129: £m
E131: =E117 -> Water resources 2020 RCV CPIH inflated ~ 1 April (opening balance excluding IFRS16 adjustment) at 2017-18 CPIH deflated price base | F131: =F117 -> 32.87087555 | G131: =G117 -> £m
E132: =E125 -> Water resources IFRS16 adjustment CPIH inflated RCV at 2017-18 FYA CPIH deflated price base | F132: =F125 -> 0.231537504 | G132: £m
E133: Water resources 2020 RCV CPIH inflated ~ 1 April (opening balance) at 2017-18 CPIH deflated price base | F133: =F131 + F132 -> 33.10241305 | G133: £m
B135: Water network plus
E136: =E$94 -> Total wholesale water RCV at 31 March 2020 post midnight adjustments before allocation to price control units at 2020 FYE price base | F136: 1376.095719 | G136: £m
E137: =Inputs!E$97 -> Water network plus % of total wholesale water RCV ~ 31 March 2020 | F137: =Inputs!F$97 -> 0.95 | G137: =Inputs!G$97 -> %
E138: =E$89 -> Net performance payment / (penalty) applied to RCV for end of period ODI adjustments ~ Water resources at 2020 FYE price base | F138: =F$89 -> 0 | G138: £m
E139: =E$90 -> Net performance payment / (penalty) applied to RCV for end of period ODI adjustments ~ Water network plus at 2020 FYE price base | F139: =F$90 -> -0.4300216283 | G139: £m
E140: Water network plus opening RCV at 2020 FYE price base | F140: =(F136 - F138 - F139) * F137 + F139 -> 1307.269432 | G140: £m
E142: =E$140 -> Water network plus opening RCV at 2020 FYE price base | F142: 1307.269432 | G142: £m
E143: =Inputs!E$94 -> % of RCV to index by RPI - water services | F143: =Inputs!F$94 -> 0.5 | G143: =Inputs!G$94 -> %
E144: Water network plus RPI linked RCV at 2020 FYE price base | F144: =F142 * F143 -> 653.6347161 | G144: £m
E146: =E$140 -> Water network plus opening RCV at 2020 FYE price base | F146: 1307.269432 | G146: £m
E147: =Inputs!E$94 -> % of RCV to index by RPI - water services | F147: =Inputs!F$94 -> 0.5 | G147: =Inputs!G$94 -> %
E148: Water network plus CPIH linked RCV at 2020 FYE price base | F148: =F146 * (1 - F147) -> 653.6347161 | G148: £m
E150: =E$144 -> Water network plus RPI linked RCV at 2020 FYE price base | F150: =F$144 -> 653.6347161 | G150: £m
E151: =E$148 -> Water network plus CPIH linked RCV at 2020 FYE price base | F151: 653.6347161 | G151: £m
E153: =Indexation!E$105 -> CPIH deflate from 2020 FYE to 2018 FYA | F153: =Indexation!F$105 -> 0.9551837521 | G153: =Indexation!G$105 -> factor
E155: Water network plus RCV RPI inflated ~ 1 April (opening balance excluding IFRS16 adjustment) at 2017-18 CPIH deflated price base | F155: =F150 * F$153 -> 624.3412606 | G155: £m
E156: Water network plus RCV CPIH inflated ~ 1 April (opening balance excluding IFRS16 adjustment) at 2017-18 CPIH deflated price base | F156: =F151 * F$153 -> 624.3412606 | G156: £m
E158: =E83 -> Water network plus IFRS16 RCV adjustment at 2017-18 FYA CPIH deflated price base | F158: =F83 -> 2.04070314 | G158: =G83 -> £m
E159: =Inputs!E$94 -> % of RCV to index by RPI - water services | F159: =Inputs!F$94 -> 0.5 | G159: =Inputs!G$94 -> %
E160: Water network plus IFRS16 adjustment RPI inflated RCV at 2017-18 FYA CPIH deflated price base | F160: =F158 * F159 -> 1.02035157 | G160: £m
E162: =E83 -> Water network plus IFRS16 RCV adjustment at 2017-18 FYA CPIH deflated price base | F162: =F83 -> 2.04070314 | G162: £m
E163: =Inputs!E$94 -> % of RCV to index by RPI - water services | F163: =Inputs!F$94 -> 0.5 | G163: =Inputs!G$94 -> %
E164: Water network plus IFRS16 adjustment CPIH inflated RCV at 2017-18 FYA CPIH deflated price base | F164: =F162 * (1 - F163) -> 1.02035157 | G164: £m
E166: =E155 -> Water network plus RCV RPI inflated ~ 1 April (opening balance excluding IFRS16 adjustment) at 2017-18 CPIH deflated price base | F166: =F155 -> 624.3412606 | G166: £m
E167: =E160 -> Water network plus IFRS16 adjustment RPI inflated RCV at 2017-18 FYA CPIH deflated price base | F167: =F160 -> 1.02035157 | G167: £m
E168: Water network plus RCV RPI inflated ~ 1 April (opening balance) at 2017-18 CPIH deflated price base | F168: =F166 + F167 -> 625.3616122 | G168: £m
E170: =E156 -> Water network plus RCV CPIH inflated ~ 1 April (opening balance excluding IFRS16 adjustment) at 2017-18 CPIH deflated price base | F170: =F156 -> 624.3412606 | G170: £m
E171: =E164 -> Water network plus IFRS16 adjustment CPIH inflated RCV at 2017-18 FYA CPIH deflated price base | F171: =F164 -> 1.02035157 | G171: £m
E172: Water network plus RCV CPIH inflated ~ 1 April (opening balance) at 2017-18 CPIH deflated price base | F172: =F170 + F171 -> 625.3616122 | G172: £m
A175: WASTEWATER SERVICES
B177: Wastewater RCV closing balance at 31 March 2020
E178: =Inputs!E$104 -> Wholesale wastewater closing RCV at 31 March 2020 in 2012-13 prices (PR14 FD) | F178: =Inputs!F$104 -> 0 | G178: =Inputs!G$104 -> £m
E179: =Inputs!E$105 -> Wastewater ~ Total Adjustment RCV carry forward to PR19 | F179: =Inputs!F$105 -> 0 | G179: =Inputs!G$105 -> £m
E180: =Inputs!E$106 -> Wastewater ~ CIS RCV inflation correction | F180: =Inputs!F$106 -> 0 | G180: =Inputs!G$106 -> £m
E181: =Inputs!E$107 -> Net performance payment / (penalty) applied to RCV for end of period ODI adjustments ~ Wastewater network plus | F181: =Inputs!F$107 -> 0 | G181: =Inputs!G$107 -> £m
E182: =Inputs!E$108 -> Wastewater: RCV adjustment from totex menu model | F182: =Inputs!F$108 -> 0 | G182: =Inputs!G$108 -> £m
E184: =Indexation!E$82 -> RPI inflate from 2013 FYA to 2020 FYE | F184: =Indexation!F$82 -> 1.201177733 | G184: =Indexation!G$82 -> factor
E186: =E178 & " at 2020 FYE price base" -> Wholesale wastewater closing RCV at 31 March 2020 in 2012-13 prices (PR14 FD) at 2020 FYE price base | F186: =F178 * F$184 -> 0 | G186: £m
E187: =E179 & " at 2020 FYE price base" -> Wastewater ~ Total Adjustment RCV carry forward to PR19 at 2020 FYE price base | F187: =F179 * F$184 -> 0 | G187: £m
E188: =E180 & " at 2020 FYE price base" -> Wastewater ~ CIS RCV inflation correction at 2020 FYE price base | F188: =F180 * F$184 -> 0 | G188: £m
E189: =E181 & " at 2020 FYE price base" -> Net performance payment / (penalty) applied to RCV for end of period ODI adjustments ~ Wastewater network plus at 2020 FYE price base | F189: =F181 * F$184 -> 0 | G189: £m
E190: =E182 & " at 2020 FYE price base" -> Wastewater: RCV adjustment from totex menu model at 2020 FYE price base | F190: =F182 * F$184 -> 0 | G190: £m
E192: =Inputs!E$114 -> Bioresources RCV (prior to midnight adjustments) 31 March 2020 | F192: =Inputs!F$114 -> 0 | G192: =Inputs!G$114 -> £m
E193: =Inputs!E$109 -> Wastewater ~ Other adjustment to wholesale RCV | F193: =Inputs!F$109 -> 0 | G193: =Inputs!G$109 -> £m
E194: =Inputs!E$110 -> Wastewater ~ NPV effect of 50% of proceeds from disposals of interest in land | F194: =Inputs!F$110 -> 0 | G194: =Inputs!G$110 -> £m
E196: =Indexation!E$95 -> RPI inflate from 2018 FYE to 2020 FYE | F196: =Indexation!F$95 -> 1.056048012 | G196: =Indexation!G$95 -> factor
E197: =Indexation!E$89 -> RPI inflate from 2018 FYA to 2020 FYE | F197: =Indexation!F$89 -> 1.069076947 | G197: =Indexation!G$89 -> factor
E199: =E192 & " at 2020 FYE price base" -> Bioresources RCV (prior to midnight adjustments) 31 March 2020 at 2020 FYE price base | F199: =F192 * F196 -> 0 | G199: £m
E200: =E193 & " at 2020 FYE price base" -> Wastewater ~ Other adjustment to wholesale RCV at 2020 FYE price base | F200: =F193 * F196 -> 0 | G200: £m
E201: =E194 & " at 2020 FYE price base" -> Wastewater ~ NPV effect of 50% of proceeds from disposals of interest in land at 2020 FYE price base | F201: =F194 * F197 -> 0 | G201: £m
C203: Values expressed in 2017-18 FYE CPIH deflated price base for table App8
E204: =E$186 -> Wholesale wastewater closing RCV at 31 March 2020 in 2012-13 prices (PR14 FD) at 2020 FYE price base | F204: =F$186 -> 0 | G204: £m
E205: =E$187 -> Wastewater ~ Total Adjustment RCV carry forward to PR19 at 2020 FYE price base | F205: 0 | G205: £m
E206: =E$188 -> Wastewater ~ CIS RCV inflation correction at 2020 FYE price base | F206: 0 | G206: £m
E207: =E$201 -> Wastewater ~ NPV effect of 50% of proceeds from disposals of interest in land at 2020 FYE price base | F207: 0 | G207: £m
E208: =E$189 -> Net performance payment / (penalty) applied to RCV for end of period ODI adjustments ~ Wastewater network plus at 2020 FYE price base | F208: 0 | G208: £m
E209: =E$190 -> Wastewater: RCV adjustment from totex menu model at 2020 FYE price base | F209: 0 | G209: £m
E210: =E$200 -> Wastewater ~ Other adjustment to wholesale RCV at 2020 FYE price base | F210: 0 | G210: £m
E212: =Indexation!E$106 -> CPIH deflate from 2020 FYE to 2018 FYE | F212: =Indexation!F$106 -> 0.9632798242 | G212: =Indexation!G$106 -> factor
E214: Wholesale wastewater closing RCV at 31 March 2020 before midnight adjustments at 2017-18 FYE CPIH deflated price base | F214: =F204 * F$212 -> 0 | G214: £m
E215: Wastewater ~ Total adjustment RCV carry forward to PR19 at 2017-18 FYE CPIH deflated price base | F215: 0 | G215: £m
E216: Wastewater ~ CIS RCV inflation correction at 2017-18 FYE CPIH deflated price base | F216: 0 | G216: £m
E217: Wastewater ~ NPV effect of 50% of proceeds from disposals of interest in land at 2017-18 FYE CPIH deflated price base | F217: 0 | G217: £m
E218: Wastewater ~ ODI RCV adjustment allocated to Wastewater network plus at 2017-18 FYE CPIH deflated price base | F218: 0 | G218: £m
E219: Wastewater ~ Totex menu RCV adjustment at 2017-18 FYE CPIH deflated price base | F219: 0 | G219: £m
E220: Wastewater ~ Other adjustment to wholesale RCV at 2017-18 FYE CPIH deflated price base | F220: 0 | G220: £m
E221: Total wholesale wastewater RCV at 31 March 2020 post midnight adjustments before allocation to price control units at 2017-18 FYE CPIH deflated price base | F221: =SUM(F214:F220) -> 0 | G221: £m
C223: PR14 reconciliation adjustments expressed in 2017-18 FYA CPIH deflated price base
E224: =E$187 -> Wastewater ~ Total Adjustment RCV carry forward to PR19 at 2020 FYE price base | F224: 0 | G224: £m
E225: =E$188 -> Wastewater ~ CIS RCV inflation correction at 2020 FYE price base | F225: 0 | G225: £m
E226: =E$201 -> Wastewater ~ NPV effect of 50% of proceeds from disposals of interest in land at 2020 FYE price base | F226: 0 | G226: £m
E227: =E$189 -> Net performance payment / (penalty) applied to RCV for end of period ODI adjustments ~ Wastewater network plus at 2020 FYE price base | F227: 0 | G227: £m
E228: =E$190 -> Wastewater: RCV adjustment from totex menu model at 2020 FYE price base | F228: 0 | G228: £m
E229: =E$200 -> Wastewater ~ Other adjustment to wholesale RCV at 2020 FYE price base | F229: 0 | G229: £m
E231: =Indexation!E$105 -> CPIH deflate from 2020 FYE to 2018 FYA | F231: =Indexation!F$105 -> 0.9551837521 | G231: =Indexation!G$105 -> factor
E233: Wastewater ~ Total Adjustment RCV carry forward to PR19 at 2017-18 FYA CPIH deflated price base | F233: =F224 * F$231 -> 0 | G233: £m
E234: Wastewater ~ CIS RCV inflation correction at 2017-18 FYA CPIH deflated price base | F234: 0 | G234: £m
E235: Wastewater ~ NPV effect of 50% of proceeds from disposals of interest in land at 2017-18 FYA CPIH deflated price base | F235: 0 | G235: £m
E236: ODI end of period RCV adjustment ~ Wastewater network plus at 2017-18 FYA CPIH deflated price base | F236: 0 | G236: £m
E237: Wastewater: Totex menu RCV adjustment at 2017-18 FYA CPIH deflated price base | F237: 0 | G237: £m
E238: Wastewater ~ Other adjustment to wholesale RCV at 2017-18 FYA CPIH deflated price base | F238: 0 | G238: £m
E240: =E199 -> Bioresources RCV (prior to midnight adjustments) 31 March 2020 at 2020 FYE price base | F240: =F199 -> 0 | G240: £m
E242: =Indexation!E$105 -> CPIH deflate from 2020 FYE to 2018 FYA | F242: =Indexation!F$105 -> 0.9551837521 | G242: =Indexation!G$105 -> factor
E244: Bioresources RCV (prior to midnight adjustments) 31 March 2020 at 2017-18 FYA CPIH deflated price base | F244: =F240 * F$242 -> 0 | G244: £m
C246: IFRS16 RCV adjustments expressed in 2017-18 FYA CPIH deflated price base
E247: =Inputs!E$116 -> Bioresources IFRS16 RCV adjustment | F247: =Inputs!F$116 -> 0 | G247: =Inputs!G$116 -> £m
E248: =Inputs!E$117 -> Wastewater network plus IFRS16 RCV adjustment | F248: =Inputs!F$117 -> 0 | G248: =Inputs!G$117 -> £m
E250: =Indexation!E$107 -> CPIH deflate from 2018 FYE to 2018 FYA - IFRS 16 | F250: =Indexation!F$107 -> 0.9915953061 | G250: =Indexation!G$107 -> factor
E252: Bioresources IFRS16 RCV adjustment at 2017-18 FYA CPIH deflated price base | F252: =F247 * F$250 -> 0 | G252: £m
E253: Wastewater network plus IFRS16 RCV adjustment at 2017-18 FYA CPIH deflated price base | F253: =F248 * F$250 -> 0 | G253: £m
B255: Total wholesale wastewater RCV at 31 March 2020 post midnight adjustments before allocation to price control units at 2020 FYE price base
E256: =E$186 -> Wholesale wastewater closing RCV at 31 March 2020 in 2012-13 prices (PR14 FD) at 2020 FYE price base | F256: 0 | G256: £m
E257: =E$187 -> Wastewater ~ Total Adjustment RCV carry forward to PR19 at 2020 FYE price base | F257: 0 | G257: £m
E258: =E$188 -> Wastewater ~ CIS RCV inflation correction at 2020 FYE price base | F258: 0 | G258: £m
... 113 more rows

Sheet Summary_Output
A1: =RIGHT(CELL("filename", $A$1), LEN(CELL("filename", $A$1)) - SEARCH("]", CELL("filename", $A$1))) -> Summary_Output
E2: =Time!E$25 -> Model period ending | K2: =Time!K$25 -> 2014-03-31 | L2: =Time!L$25 -> 2015-03-31 | M2: =Time!M$25 -> 2016-03-31 | N2: =Time!N$25 -> 2017-03-31 | O2: =Time!O$25 -> 2018-03-31 | P2: =Time!P$25 -> 2019-03-31 | Q2: =Time!Q$25 -> 2020-03-31 | R2: =Time!R$25 -> 2021-03-31 | S2: =Time!S$25 -> 2022-03-31 | T2: =Time!T$25 -> 2023-03-31 | U2: =Time!U$25 -> 2024-03-31
E3: =Time!E$80 -> Timeline label | K3: =Time!K$80 -> Pre-Fcst | L3: =Time!L$80 -> Pre-Fcst | M3: =Time!M$80 -> Pre-Fcst | N3: =Time!N$80 -> Pre-Fcst | O3: =Time!O$80 -> Pre-Fcst | P3: =Time!P$80 -> Pre-Fcst | Q3: =Time!Q$80 -> Pre-Fcst | R3: =Time!R$80 -> Forecast | S3: =Time!S$80 -> Forecast | T3: =Time!T$80 -> Forecast | U3: =Time!U$80 -> Forecast
E4: =Time!E$103 -> Financial year ending | K4: =Time!K$103 -> 2014 | L4: =Time!L$103 -> 2015 | M4: =Time!M$103 -> 2016 | N4: =Time!N$103 -> 2017 | O4: =Time!O$103 -> 2018 | P4: =Time!P$103 -> 2019 | Q4: =Time!Q$103 -> 2020 | R4: =Time!R$103 -> 2021 | S4: =Time!S$103 -> 2022 | T4: =Time!T$103 -> 2023 | U4: =Time!U$103 -> 2024
E5: =Time!E$10 -> Model column counter | F5: Constant | G5: Unit | K5: =Time!K$10 -> 2 | L5: =Time!L$10 -> 3 | M5: =Time!M$10 -> 4 | N5: =Time!N$10 -> 5 | O5: =Time!O$10 -> 6 | P5: =Time!P$10 -> 7 | Q5: =Time!Q$10 -> 8 | R5: =Time!R$10 -> 9 | S5: =Time!S$10 -> 10 | T5: =Time!T$10 -> 11 | U5: =Time!U$10 -> 12
A7: WATER SERVICES
B9: Values expressed in 2017-18 FYE CPIH deflated price base for table App8
E10: =Calc!E$47 -> Wholesale water closing RCV at 31 March 2020 before midnight adjustments at 2017-18 FYE CPIH deflated price base | F10: =Calc!F$47 -> 1367.382603 | G10: =Calc!G$47 -> £m
E11: =Calc!E$48 -> Water ~ Total Adjustment RCV carry forward to PR19 at 2017-18 FYE CPIH deflated price base | F11: =Calc!F$48 -> 0.6988704461 | G11: =Calc!G$48 -> £m
E12: =Calc!E$49 -> Water ~ CIS RCV inflation correction at 2017-18 FYE CPIH deflated price base | F12: =Calc!F$49 -> -24.6438506 | G12: =Calc!G$49 -> £m
E13: =Calc!E$50 -> Water ~ NPV effect of 50% of proceeds from disposals of interest in land at 2017-18 FYE CPIH deflated price base | F13: =Calc!F$50 -> 0.5921466458 | G13: =Calc!G$50 -> £m
E14: =Calc!E$51 -> Water ~ ODI RCV adjustment allocated to Water resources at 2017-18 FYE CPIH deflated price base | F14: =Calc!F$51 -> 0 | G14: =Calc!G$51 -> £m
E15: =Calc!E$52 -> Water ~ ODI RCV adjustment allocated to Water network plus at 2017-18 FYE CPIH deflated price base | F15: =Calc!F$52 -> -0.4142311585 | G15: =Calc!G$52 -> £m
E16: =Calc!E$53 -> Water ~ Totex menu RCV adjustment at 2017-18 FYE CPIH deflated price base | F16: =Calc!F$53 -> -18.05029629 | G16: =Calc!G$53 -> £m
E17: =Calc!E$54 -> Water ~ Other adjustment to wholesale RCV at 2017-18 FYE CPIH deflated price base | F17: =Calc!F$54 -> 0 | G17: =Calc!G$54 -> £m
E18: =Calc!E$55 -> Total wholesale water RCV at 31 March 2020 post midnight adjustments before allocation to price control units at 2017-18 FYE CPIH deflated price base | F18: =Calc!F$55 -> 1325.565243 | G18: =Calc!G$55 -> £m
B20: Values expressed in 2017-18 FYA CPIH deflated price base on table App8
E21: =Calc!E$82 -> Water resources IFRS16 RCV adjustment at 2017-18 FYA CPIH deflated price base | F21: =Calc!F$82 -> 0.4630750079 | G21: =Calc!G$82 -> £m
E22: =Calc!E$129 -> Water resources 2020 RCV RPI inflated ~ 1 April (opening balance) at 2017-18 CPIH deflated price base | F22: =Calc!F$129 -> 33.10241305 | G22: =Calc!G$129 -> £m
E23: =Calc!E$133 -> Water resources 2020 RCV CPIH inflated ~ 1 April (opening balance) at 2017-18 CPIH deflated price base | F23: =Calc!F$133 -> 33.10241305 | G23: =Calc!G$133 -> £m
E25: =Calc!E$83 -> Water network plus IFRS16 RCV adjustment at 2017-18 FYA CPIH deflated price base | F25: =Calc!F$83 -> 2.04070314 | G25: =Calc!G$83 -> £m
E26: =Calc!E$168 -> Water network plus RCV RPI inflated ~ 1 April (opening balance) at 2017-18 CPIH deflated price base | F26: =Calc!F$168 -> 625.3616122 | G26: =Calc!G$168 -> £m
E27: =Calc!E$172 -> Water network plus RCV CPIH inflated ~ 1 April (opening balance) at 2017-18 CPIH deflated price base | F27: =Calc!F$172 -> 625.3616122 | G27: =Calc!G$172 -> £m
B30: PR14 reconciliation adjustments expressed in 2017-18 FYA CPIH deflated price base by table
C31: Table App9
E32: =Calc!E$70 -> Water ~ NPV effect of 50% of proceeds from disposals of interest in land at 2017-18 FYA CPIH deflated price base | F32: =Calc!F$70 -> 0.5871698345 | G32: =Calc!G$70 -> £m
C33: Table App25
E34: =Calc!E$68 -> Water ~ Total adjustment RCV carry forward to PR19 at 2017-18 FYA CPIH deflated price base | F34: =Calc!F$68 -> 0.6929966539 | G34: =Calc!G$68 -> £m
E35: =Calc!E$69 -> Water ~ CIS RCV inflation correction at 2017-18 FYA CPIH deflated price base | F35: =Calc!F$69 -> -24.43672658 | G35: =Calc!G$69 -> £m
C36: Table App27
E37: =Calc!E$71 -> ODI end of period RCV adjustment ~ Water resources at 2017-18 FYA CPIH deflated price base | F37: =Calc!F$71 -> 0 | G37: =Calc!G$71 -> £m
E38: =Calc!E$72 -> ODI end of period RCV adjustment ~ Water network plus at 2017-18 FYA CPIH deflated price base | F38: =Calc!F$72 -> -0.4107496724 | G38: =Calc!G$72 -> £m
C39: Table WS15
E40: =Calc!E$73 -> Water: Totex menu RCV adjustment at 2017-18 FYA CPIH deflated price base | F40: =Calc!F$73 -> -17.89858907 | G40: =Calc!G$73 -> £m
C41: No table
E42: =Calc!E$74 -> Water ~ Other adjustment to wholesale RCV at 2017-18 FYA CPIH deflated price base | F42: =Calc!F$74 -> 0 | G42: =Calc!G$74 -> £m
A45: WASTEWATER SERVICES
B47: Values expressed in 2017-18 FYE CPIH deflated price base for table App8
E48: =Calc!E$214 -> Wholesale wastewater closing RCV at 31 March 2020 before midnight adjustments at 2017-18 FYE CPIH deflated price base | F48: =Calc!F$214 -> 0 | G48: =Calc!G$214 -> £m
E49: =Calc!E$215 -> Wastewater ~ Total adjustment RCV carry forward to PR19 at 2017-18 FYE CPIH deflated price base | F49: =Calc!F$215 -> 0 | G49: =Calc!G$215 -> £m
E50: =Calc!E$216 -> Wastewater ~ CIS RCV inflation correction at 2017-18 FYE CPIH deflated price base | F50: =Calc!F$216 -> 0 | G50: =Calc!G$216 -> £m
E51: =Calc!E$217 -> Wastewater ~ NPV effect of 50% of proceeds from disposals of interest in land at 2017-18 FYE CPIH deflated price base | F51: =Calc!F$217 -> 0 | G51: =Calc!G$217 -> £m
E52: =Calc!E$218 -> Wastewater ~ ODI RCV adjustment allocated to Wastewater network plus at 2017-18 FYE CPIH deflated price base | F52: =Calc!F$218 -> 0 | G52: =Calc!G$218 -> £m
E53: =Calc!E$219 -> Wastewater ~ Totex menu RCV adjustment at 2017-18 FYE CPIH deflated price base | F53: =Calc!F$219 -> 0 | G53: =Calc!G$219 -> £m
E54: =Calc!E$220 -> Wastewater ~ Other adjustment to wholesale RCV at 2017-18 FYE CPIH deflated price base | F54: =Calc!F$220 -> 0 | G54: =Calc!G$220 -> £m
E55: =Calc!E$221 -> Total wholesale wastewater RCV at 31 March 2020 post midnight adjustments before allocation to price control units at 2017-18 FYE CPIH deflated price base | F55: =Calc!F$221 -> 0 | G55: =Calc!G$221 -> £m
B57: Values expressed in 2017-18 FYA CPIH deflated price base on table App8
E58: =Calc!E$244 -> Bioresources RCV (prior to midnight adjustments) 31 March 2020 at 2017-18 FYA CPIH deflated price base | F58: =Calc!F$244 -> 0 | G58: =Calc!G$244 -> £m
E59: =Calc!E$253 -> Wastewater network plus IFRS16 RCV adjustment at 2017-18 FYA CPIH deflated price base | F59: =Calc!F$253 -> 0 | G59: =Calc!G$253 -> £m
E60: =Calc!E$296 -> Wastewater network plus RCV RPI inflated ~ 1 April (opening balance) at 2017-18 CPIH deflated price base | F60: =Calc!F$296 -> 0 | G60: =Calc!G$296 -> £m
E61: =Calc!E$300 -> Wastewater network plus RCV CPIH inflated ~ 1 April (opening balance) at 2017-18 CPIH deflated price base | F61: =Calc!F$300 -> 0 | G61: =Calc!G$300 -> £m
E63: =Calc!E$252 -> Bioresources IFRS16 RCV adjustment at 2017-18 FYA CPIH deflated price base | F63: =Calc!F$252 -> 0 | G63: =Calc!G$252 -> £m
E64: =Calc!E$329 -> Bioresources 2020 RCV RPI inflated ~ 1 April (opening balance) at 2017-18 CPIH deflated price base | F64: =Calc!F$329 -> 0 | G64: =Calc!G$329 -> £m
E65: =Calc!E$333 -> Bioresources 2020 RCV CPIH inflated ~ 1 April (opening balance) at 2017-18 CPIH deflated price base | F65: =Calc!F$333 -> 0 | G65: =Calc!G$333 -> £m
B68: PR14 reconciliation adjustments expressed in 2017-18 FYA CPIH deflated price base by table
C69: Table App9
E70: =Calc!E$235 -> Wastewater ~ NPV effect of 50% of proceeds from disposals of interest in land at 2017-18 FYA CPIH deflated price base | F70: =Calc!F$235 -> 0 | G70: =Calc!G$235 -> £m
C71: Table App25
E72: =Calc!E$233 -> Wastewater ~ Total Adjustment RCV carry forward to PR19 at 2017-18 FYA CPIH deflated price base | F72: =Calc!F$233 -> 0 | G72: =Calc!G$233 -> £m
E73: =Calc!E$234 -> Wastewater ~ CIS RCV inflation correction at 2017-18 FYA CPIH deflated price base | F73: =Calc!F$234 -> 0 | G73: =Calc!G$234 -> £m
C74: Table App27
E75: =Calc!E$236 -> ODI end of period RCV adjustment ~ Wastewater network plus at 2017-18 FYA CPIH deflated price base | F75: =Calc!F$236 -> 0 | G75: =Calc!G$236 -> £m
C76: Table WWS15
E77: =Calc!E$237 -> Wastewater: Totex menu RCV adjustment at 2017-18 FYA CPIH deflated price base | F77: =Calc!F$237 -> 0 | G77: =Calc!G$237 -> £m
C78: No table
E79: =Calc!E$238 -> Wastewater ~ Other adjustment to wholesale RCV at 2017-18 FYA CPIH deflated price base | F79: =Calc!F$238 -> 0 | G79: =Calc!G$238 -> £m
A82: DUMMY
B84: Values expressed in 2017-18 FYE CPIH deflated price base for table App8
E85: =Calc!E$360 -> Dummy RCV (prior to midnight adjustments) 31 March 2020 at 2017-18 FYE CPIH deflated price base | F85: =Calc!F$360 -> 0 | G85: =Calc!G$360 -> £m
E86: =Calc!E$361 -> ODI end of period RCV adjustment allocated to dummy at 2017-18 FYE CPIH deflated price base | F86: =Calc!F$361 -> 0 | G86: =Calc!G$361 -> £m
E87: =Calc!E$362 -> Dummy ~ Totex menu RCV adjustment at 2017-18 FYE CPIH deflated price base | F87: =Calc!F$362 -> 0 | G87: =Calc!G$362 -> £m
E88: =Calc!E$363 -> Total dummy RCV at 31 March 2020 post midnight adjustments at 2017-18 FYE CPIH deflated price base | F88: =Calc!F$363 -> 0 | G88: =Calc!G$363 -> £m
B90: Values expressed in 2017-18 FYA CPIH deflated price base on table App8
E91: =Calc!E$379 -> Dummy IFRS16 RCV adjustment at 2017-18 FYA CPIH deflated price base | F91: =Calc!F$379 -> 0 | G91: =Calc!G$379 -> £m
E92: =Calc!E$413 -> Dummy 2020 RCV RPI inflated ~ 1 April (opening balance) at 2017-18 CPIH deflated price base | F92: =Calc!F$413 -> 0 | G92: =Calc!G$413 -> £m
E93: =Calc!E$417 -> Dummy 2020 RCV CPIH inflated ~ 1 April (opening balance) at 2017-18 CPIH deflated price base | F93: =Calc!F$417 -> 0 | G93: =Calc!G$417 -> £m
B95: PR14 reconciliation adjustments expressed in 2017-18 FYA CPIH deflated price base by table
C96: Table App27
E97: =Calc!E$371 -> ODI end of period RCV adjustment ~ Thames Tideway at 2017-18 FYA CPIH deflated price base | F97: =Calc!F$371 -> 0 | G97: =Calc!G$371 -> £m
C98: Table Dmmy10
E99: =Calc!E$372 -> Dummy ~ Totex menu RCV adjustment at 2017-18 FYA CPIH deflated price base | F99: =Calc!F$372 -> 0 | G99: =Calc!G$372 -> £m
